Workbook

Sheet NTN-B
A1: IV | B1: Calculo FLUXO E PU NTN-B
D2: NTN-B
I3: DT. LIQ. | J3: DU | K3: VR. FUTURO | L3: VR. PRESENTE | M3: PU | N3: Fin | O3: VP * Prazo
D4: LIQUIDAÇÃO | E4: =BMF!L1 -> 2020-02-05 | I4: 2020-02-17 | J4: =NETWORKDAYS($E$4,I4,Feriado)-1 -> 8 | K4: =$E$6 -> 2.956301 | L4: =K4/(1+$E$9/100)^(J4/252) -> 2.954234965 | M4: =L4*$E$8/100 -> 97.54648051 | N4: =M4*$E$11 -> 9754.648051 | O4: =L4*J4 -> 23.63387972
D5: JUROS | E5: 6 | I5: 2020-08-17 | J5: 132 | K5: 2.956301 | L5: 2.922395427 | M5: =L5*$E$8/100 -> 96.4951644 | N5: =M5*$E$11 -> 9649.51644 | O5: 385.7561964
D6: CUPOM DE JUROS | E6: =ROUND((1+E5/100)^(1/2)-1,8)*100 -> 2.956301 | I6: 2021-02-17 | J6: 257 | K6: 2.956301 | L6: 2.890646425 | M6: 95.4468377 | N6: 9544.68377 | O6: 742.8961313
D7: VN | E7: 1000 | I7: 2021-08-16 | J7: 382 | K7: 2.956301 | L7: 2.859242345 | M7: 94.40990005 | N7: 9440.990005 | O7: 1092.230576
D8: VNA (05/02) | E8: =E12*E17 -> 3301.920182 | I8: 2022-02-15 | J8: 509 | K8: 2.956301 | L8: 2.827685187 | M8: 93.36790786 | N8: 9336.790786 | O8: 1439.29176
D9: TAXA | E9: =ANBIMA!F11 -> 2.2266 | I9: 2022-08-15 | J9: 633 | K9: 2.956301 | L9: 2.797209551 | M9: 92.3616267 | N9: 9236.16267 | O9: 1770.633646
D10: VENCIMENTO | E10: 2024-08-15 | I10: 2023-02-15 | J10: 761 | K10: 2.956301 | L10: 2.766095309 | M10: 91.33425924 | N10: 9133.425924 | O10: 2104.99853
D11: estoque | E11: 100 | I11: 2023-08-15 | J11: 884 | K11: 2.956301 | L11: 2.736522592 | M11: 90.35779175 | N11: 9035.779175 | O11: 2419.085971
D12: VNA (15/01) | E12: 3297.200765 | I12: 2024-02-15 | J12: 1008 | K12: =$E$6 -> 2.956301 | L12: 2.70702947 | M12: 89.38395239 | N12: 8938.395239 | O12: 2728.685706
I13: 2024-08-15 | J13: 1135 | K13: =$E$6+100 -> 102.956301 | L13: 93.23465196 | M13: 3078.533789 | N13: 307853.3789 | O13: 105821.33
D14: PROJ IPCA DO MÊS (%) | E14: 0.21 | K14: COTAÇÃO | L14: =SUM(L4:L13) -> 118.6957132 | M14: =SUM(M4:M13) -> 3919.23771 | N14: =SUM(N4:N13) -> 391923.771 | O14: =SUM(O4:O13) -> 118528.5424
D15: DU MÊS | E15: =NETWORKDAYS(F16,G16,Feriado)-1 -> 22 | F15: DU I | G15: DU F | K15: PU | L15: =L14*E8/100 -> 3919.23771
D16: DU LIQ | E16: =NETWORKDAYS(F17,G17,Feriado)-1 -> 15 | F16: 2020-01-15 | G16: 2020-02-15
D17: PRO RATA | E17: =(1+E14/100)^(E16/E15) -> 1.00143134 | F17: =F16 -> 2020-01-15 | G17: =E4 -> 2020-02-05 | K17: Duration | L17: =O14/L14 -> 998.5916015
A20: X | B20: Grafico NTN-B
L22: 6
L24: Data | M24: Preço
K25: 0 | L25: 2020-02-05 | M25: =SUM(N25:V25) -> 100.5042391 | N25: =$K$4/(1+$L$22/100)^(($J$4-K25)/252) -> 2.95083747 | O25: =$K$5/(1+$L$22/100)^(($J$5-K25)/252) -> 2.867432459 | P25: =$K$6/(1+$L$22/100)^(($J$6-K25)/252) -> 2.785740669 | Q25: =$K$7/(1+$L$22/100)^(($J$7-K25)/252) -> 2.70637624 | R25: =$K$8/(1+$L$22/100)^(($J$8-K25)/252) -> 2.628057235 | S25: =$K$9/(1+$L$22/100)^(($J$9-K25)/252) -> 2.553775563 | T25: =$K$10/(1+$L$22/100)^(($J$10-K25)/252) -> 2.479299278 | U25: =$K$12/(1+$L$22/100)^(($J$12-K25)/252) -> 2.341667289 | V25: =$K$13/(1+$L$22/100)^(($J$13-K25)/252) -> 79.19105287
K26: =K25+1 -> 1 | L26: =L25+1 -> 2020-02-06 | M26: =SUM(N26:V26) -> 100.5274809 | N26: 2.951519858 | O26: 2.86809556 | P26: 2.786384879 | Q26: 2.707002096 | R26: 2.62866498 | S26: 2.55436613 | T26: 2.479872623 | U26: 2.342208805 | V26: =$K$13/(1+$L$22/100)^(($J$13-K26)/252) -> 79.20936601
K27: =K26+1 -> 2 | L27: 2020-02-07 | M27: 100.5507282 | N27: 2.952202405 | O27: 2.868758814 | P27: 2.787029237 | Q27: 2.707628097 | R27: 2.629272866 | S27: 2.554956833 | T27: 2.4804461 | U27: 2.342750447 | V27: 79.22768338
K28: 3 | L28: 2020-02-08 | M28: 100.5739808 | N28: 2.952885109 | O28: 2.869422222 | P28: 2.787673745 | Q28: 2.708254243 | R28: 2.629880892 | S28: 2.555547674 | T28: 2.481019709 | U28: 2.343292214 | V28: 79.24600498
K29: 4 | L29: 2020-02-09 | M29: 100.5972388 | N29: 2.953567972 | O29: 2.870085783 | P29: 2.788318402 | Q29: 2.708880534 | R29: 2.630489058 | S29: 2.556138651 | T29: 2.481593451 | U29: 2.343834106 | V29: 79.26433082
K30: 5 | L30: 2020-02-10 | M30: 100.6205021 | N30: 2.954250992 | O30: 2.870749498 | P30: 2.788963208 | Q30: 2.70950697 | R30: 2.631097366 | S30: 2.556729764 | T30: 2.482167326 | U30: 2.344376124 | V30: 79.2826609
K31: 6 | L31: 2020-02-11 | M31: 100.6437709 | N31: 2.95493417 | O31: 2.871413366 | P31: 2.789608162 | Q31: 2.71013355 | R31: 2.631705814 | S31: 2.557321015 | T31: 2.482741334 | U31: 2.344918267 | V31: 79.30099522
K32: 7 | L32: 2020-02-12 | M32: 100.667045 | N32: 2.955617506 | O32: 2.872077388 | P32: 2.790253266 | Q32: 2.710760275 | R32: 2.632314402 | S32: 2.557912402 | T32: 2.483315474 | U32: 2.345460535 | V32: 79.31933378
K33: 8 | L33: 2020-02-13 | M33: 100.6903245 | N33: 2.956301 | O33: 2.872741563 | P33: 2.79089852 | Q33: 2.711387146 | R33: 2.632923132 | S33: 2.558503925 | T33: 2.483889747 | U33: 2.346002929 | V33: 79.33767658
K34: 9 | L34: 2020-02-14 | M34: 97.75662478 | O34: 2.873405892 | P34: 2.791543922 | Q34: 2.712014161 | R34: 2.633532002 | S34: 2.559095586 | T34: 2.484464153 | U34: 2.346545448 | V34: 79.35602362
K35: 10 | L35: 2020-02-15 | M35: 97.77923125 | O35: 2.874070374 | P35: 2.792189474 | Q35: 2.712641321 | R35: 2.634141013 | S35: 2.559687383 | T35: 2.485038692 | U35: 2.347088093 | V35: 79.3743749
K36: 11 | L36: 2020-02-16 | M36: 97.80184295 | O36: 2.874735011 | P36: 2.792835175 | Q36: 2.713268626 | R36: 2.634750165 | S36: 2.560279318 | T36: 2.485613363 | U36: 2.347630863 | V36: 79.39273043
K37: 12 | L37: 2020-02-17 | M37: =SUM(N37:V37)-N37 -> 97.82445988 | O37: 2.8753998 | P37: 2.793481025 | Q37: 2.713896077 | R37: 2.635359458 | S37: 2.560871389 | T37: 2.486188168 | U37: 2.348173759 | V37: 79.4110902
K38: 13 | L38: 2020-02-18 | M38: 97.84708203 | O38: 2.876064744 | P38: 2.794127025 | Q38: 2.714523672 | R38: 2.635968891 | S38: 2.561463597 | T38: 2.486763105 | U38: 2.34871678 | V38: 79.42945422
K39: 14 | L39: 2020-02-19 | M39: 97.86970942 | O39: 2.876729841 | P39: 2.794773174 | Q39: 2.715151413 | R39: 2.636578466 | S39: 2.562055942 | T39: 2.487338175 | U39: 2.349259927 | V39: 79.44782249
K40: 15 | L40: 2020-02-20 | M40: 97.89234204 | O40: 2.877395092 | P40: 2.795419472 | Q40: 2.715779298 | R40: 2.637188181 | S40: 2.562648424 | T40: 2.487913379 | U40: 2.349803199 | V40: 79.466195
K41: 16 | L41: 2020-02-21 | M41: 97.9149799 | O41: 2.878060497 | P41: 2.79606592 | Q41: 2.716407329 | R41: 2.637798038 | S41: 2.563241043 | T41: 2.488488715 | U41: 2.350346597 | V41: 79.48457176
K42: 17 | L42: 2020-02-22 | M42: 97.93762299 | O42: 2.878726056 | P42: 2.796712517 | Q42: 2.717035505 | R42: 2.638408035 | S42: 2.563833799 | T42: 2.489064184 | U42: 2.350890121 | V42: 79.50295277
K43: =K42+1 -> 18 | L43: 2020-02-23 | M43: 97.96027131 | O43: 2.879391769 | P43: 2.797359264 | Q43: 2.717663827 | R43: 2.639018174 | S43: 2.564426692 | T43: 2.489639787 | U43: 2.35143377 | V43: 79.52133803
K44: 19 | L44: 2020-02-24 | M44: 97.98292488 | O44: 2.880057636 | P44: 2.798006161 | Q44: 2.718292294 | R44: 2.639628454 | S44: 2.565019722 | T44: 2.490215522 | U44: 2.351977545 | V44: 79.53972754
K45: 20 | L45: 2020-02-25 | M45: 98.00558368 | O45: 2.880723656 | P45: 2.798653207 | Q45: 2.718920906 | R45: 2.640238875 | S45: 2.56561289 | T45: 2.490791391 | U45: 2.352521446 | V45: 79.55812131
K46: 21 | L46: 2020-02-26 | M46: 98.02824772 | O46: 2.881389831 | P46: 2.799300403 | Q46: 2.719549663 | R46: 2.640849437 | S46: 2.566206194 | T46: 2.491367393 | U46: 2.353065473 | V46: 79.57651933
K47: 22 | L47: 2020-02-27 | M47: 98.05091701 | O47: 2.88205616 | P47: 2.799947748 | Q47: 2.720178566 | R47: 2.64146014 | S47: 2.566799636 | T47: 2.491943528 | U47: 2.353609625 | V47: 79.5949216
K48: 23 | L48: 2020-02-28 | M48: 98.07359153 | O48: 2.882722643 | P48: 2.800595243 | Q48: 2.720807614 | R48: 2.642070984 | S48: 2.567393215 | T48: 2.492519796 | U48: 2.354153903 | V48: 79.61332813
K49: 24 | L49: 2020-02-29 | M49: 98.0962713 | O49: 2.88338928 | P49: 2.801242888 | Q49: 2.721436808 | R49: 2.64268197 | S49: 2.567986931 | T49: 2.493096198 | U49: 2.354698307 | V49: 79.63173892
K50: 25 | L50: 2020-03-01 | M50: 98.11895631 | O50: 2.884056071 | P50: 2.801890683 | Q50: 2.722066147 | R50: 2.643293097 | S50: 2.568580785 | T50: 2.493672733 | U50: 2.355242837 | V50: 79.65015396
K51: 26 | L51: 2020-03-02 | M51: 98.14164657 | O51: 2.884723016 | P51: 2.802538627 | Q51: 2.722695632 | R51: 2.643904365 | S51: 2.569174776 | T51: 2.494249401 | U51: 2.355787493 | V51: 79.66857326
K52: 27 | L52: 2020-03-03 | M52: 98.16434208 | O52: 2.885390116 | P52: 2.803186721 | Q52: 2.723325262 | R52: 2.644515775 | S52: 2.569768904 | T52: 2.494826203 | U52: 2.356332275 | V52: 79.68699683
K53: 28 | L53: 2020-03-04 | M53: 98.18704284 | O53: 2.88605737 | P53: 2.803834965 | Q53: 2.723955038 | R53: 2.645127326 | S53: 2.57036317 | T53: 2.495403138 | U53: 2.356877183 | V53: 79.70542465
K54: 29 | L54: 2020-03-05 | M54: 98.20974884 | O54: 2.886724778 | P54: 2.804483359 | Q54: 2.72458496 | R54: 2.645739018 | S54: 2.570957573 | T54: 2.495980206 | U54: 2.357422217 | V54: 79.72385673
K55: 30 | L55: 2020-03-06 | M55: 98.2324601 | O55: 2.88739234 | P55: 2.805131903 | Q55: 2.725215027 | R55: 2.646350852 | S55: 2.571552113 | T55: 2.496557408 | U55: 2.357967377 | V55: 79.74229308
K56: 31 | L56: 2020-03-07 | M56: 98.25517661 | O56: 2.888060057 | P56: 2.805780597 | Q56: 2.72584524 | R56: 2.646962828 | S56: 2.572146791 | T56: 2.497134743 | U56: 2.358512663 | V56: 79.76073369
K57: 32 | L57: 2020-03-08 | M57: 98.27789837 | O57: =$K$5/(1+$L$22/100)^(($J$5-K57)/252) -> 2.888727929 | P57: 2.806429441 | Q57: 2.726475599 | R57: 2.647574945 | S57: 2.572741607 | T57: 2.497712212 | U57: 2.359058075 | V57: 79.77917856
K58: 33 | L58: 2020-03-09 | M58: 98.30062538 | O58: 2.889395954 | P58: 2.807078435 | Q58: 2.727106103 | R58: 2.648187203 | S58: 2.57333656 | T58: 2.498289814 | U58: 2.359603613 | V58: 79.7976277
K59: =K58+1 -> 34 | L59: 2020-03-10 | M59: 98.32335765 | O59: 2.890064135 | P59: 2.807727579 | Q59: 2.727736753 | R59: 2.648799603 | S59: 2.57393165 | T59: 2.49886755 | U59: 2.360149278 | V59: 79.81608111
K60: 35 | L60: 2020-03-11 | M60: 98.34609518 | O60: 2.890732469 | P60: 2.808376873 | Q60: 2.728367549 | R60: 2.649412145 | S60: 2.574526879 | T60: 2.49944542 | U60: 2.360695068 | V60: 79.83453878
K61: 36 | L61: 2020-03-12 | M61: 98.36883797 | O61: 2.891400959 | P61: 2.809026318 | Q61: 2.728998491 | R61: 2.650024828 | S61: 2.575122245 | T61: 2.500023423 | U61: 2.361240985 | V61: 79.85300072
K62: 37 | L62: 2020-03-13 | M62: 98.39158601 | O62: 2.892069602 | P62: 2.809675912 | Q62: 2.729629579 | R62: 2.650637653 | S62: 2.575717748 | T62: 2.50060156 | U62: 2.361787028 | V62: 79.87146693
K63: 38 | L63: 2020-03-14 | M63: 98.41433932 | O63: 2.892738401 | P63: 2.810325657 | Q63: 2.730260813 | R63: 2.65125062 | S63: 2.57631339 | T63: 2.50117983 | U63: 2.362333197 | V63: 79.88993741
K64: 39 | L64: 2020-03-15 | M64: 98.43709789 | O64: 2.893407354 | P64: 2.810975552 | Q64: 2.730892193 | R64: 2.651863728 | S64: 2.576909169 | T64: 2.501758234 | U64: 2.362879493 | V64: 79.90841216
K65: 40 | L65: 2020-03-16 | M65: 98.45986172 | O65: 2.894076462 | P65: 2.811625597 | Q65: 2.731523719 | R65: 2.652476979 | S65: 2.577505085 | T65: 2.502336772 | U65: 2.363425915 | V65: 79.92689119
K66: 41 | L66: 2020-03-17 | M66: 98.48263081 | O66: 2.894745725 | P66: 2.812275793 | Q66: 2.732155391 | R66: 2.653090371 | S66: 2.57810114 | T66: 2.502915444 | U66: 2.363972463 | V66: 79.94537449
K67: 42 | L67: 2020-03-18 | M67: 98.50540517 | O67: 2.895415142 | P67: 2.812926139 | Q67: 2.732787209 | R67: 2.653703905 | S67: 2.578697333 | T67: 2.50349425 | U67: 2.364519138 | V67: 79.96386206
K68: 43 | L68: 2020-03-19 | M68: 98.5281848 | O68: 2.896084714 | P68: 2.813576635 | Q68: 2.733419173 | R68: 2.654317581 | S68: 2.579293663 | T68: 2.504073189 | U68: 2.365065939 | V68: 79.98235391
K69: 44 | L69: 2020-03-20 | M69: 98.5509697 | O69: 2.896754441 | P69: 2.814227282 | Q69: 2.734051283 | R69: 2.654931398 | S69: 2.579890131 | T69: 2.504652262 | U69: 2.365612866 | V69: 80.00085003
K70: 45 | L70: 2020-03-21 | M70: 98.57375986 | O70: 2.897424323 | P70: 2.814878079 | Q70: 2.734683539 | R70: 2.655545358 | S70: 2.580486737 | T70: 2.50523147 | U70: 2.366159921 | V70: 80.01935043
K71: 46 | L71: 2020-03-22 | M71: 98.5965553 | O71: 2.89809436 | P71: 2.815529027 | Q71: 2.735315942 | R71: 2.65615946 | S71: 2.581083482 | T71: 2.505810811 | U71: 2.366707101 | V71: 80.03785511
K72: 47 | L72: 2020-03-23 | M72: 98.619356 | O72: 2.898764551 | P72: 2.816180125 | Q72: 2.735948491 | R72: 2.656773703 | S72: 2.581680364 | T72: 2.506390286 | U72: 2.367254408 | V72: 80.05636407
K73: 48 | L73: 2020-03-24 | M73: 98.64216198 | O73: 2.899434898 | P73: 2.816831374 | Q73: 2.736581186 | R73: 2.657388089 | S73: 2.582277384 | T73: 2.506969895 | U73: 2.367801842 | V73: 80.07487731
K74: 49 | L74: 2020-03-25 | M74: 98.66497323 | O74: 2.9001054 | P74: 2.817482774 | Q74: 2.737214027 | R74: 2.658002617 | S74: 2.582874542 | T74: 2.507549638 | U74: 2.368349402 | V74: 80.09339483
K75: =K74+1 -> 50 | L75: 2020-03-26 | M75: 98.68778976 | O75: 2.900776057 | P75: 2.818134324 | Q75: 2.737847015 | R75: 2.658617287 | S75: 2.583471839 | T75: 2.508129516 | U75: 2.368897089 | V75: 80.11191663
K76: 51 | L76: 2020-03-27 | M76: 98.71061156 | O76: 2.901446869 | P76: 2.818786025 | Q76: 2.738480149 | R76: 2.659232099 | S76: 2.584069273 | T76: 2.508709527 | U76: 2.369444902 | V76: 80.13044272
K77: 52 | L77: 2020-03-28 | M77: 98.73343865 | O77: 2.902117836 | P77: 2.819437876 | Q77: 2.739113429 | R77: 2.659847053 | S77: 2.584666846 | T77: 2.509289673 | U77: 2.369992843 | V77: 80.14897309
K78: 53 | L78: 2020-03-29 | M78: 98.75627101 | O78: 2.902788958 | P78: 2.820089878 | Q78: 2.739746856 | R78: 2.660462149 | S78: 2.585264557 | T78: 2.509869952 | U78: 2.37054091 | V78: 80.16750775
K79: 54 | L79: 2020-03-30 | M79: 98.77910865 | O79: 2.903460235 | P79: 2.820742031 | Q79: 2.74038043 | R79: 2.661077388 | S79: 2.585862406 | T79: 2.510450366 | U79: 2.371089103 | V79: 80.18604669
K80: 55 | L80: 2020-03-31 | M80: 98.80195157 | O80: 2.904131668 | P80: 2.821394335 | Q80: 2.74101415 | R80: 2.661692769 | S80: 2.586460393 | T80: 2.511030914 | U80: 2.371637424 | V80: 80.20458992
K81: 56 | L81: 2020-04-01 | M81: 98.82479977 | O81: 2.904803256 | P81: 2.82204679 | Q81: 2.741648016 | R81: 2.662308292 | S81: 2.587058518 | T81: 2.511611597 | U81: 2.372185871 | V81: 80.22313743
K82: 57 | L82: 2020-04-02 | M82: 98.84765326 | O82: 2.905474999 | P82: 2.822699395 | Q82: 2.74228203 | R82: 2.662923958 | S82: 2.587656782 | T82: 2.512192413 | U82: 2.372734445 | V82: 80.24168924
K83: 58 | L83: 2020-04-03 | M83: 98.87051203 | O83: 2.906146897 | P83: 2.823352152 | Q83: 2.742916189 | R83: 2.663539766 | S83: 2.588255185 | T83: 2.512773364 | U83: 2.373283146 | V83: 80.26024533
K84: 59 | L84: 2020-04-04 | M84: 98.89337609 | O84: 2.906818951 | P84: 2.824005059 | Q84: 2.743550496 | R84: 2.664155716 | S84: 2.588853725 | T84: 2.513354449 | U84: 2.373831974 | V84: 80.27880572
K85: 60 | L85: 2020-04-05 | M85: 98.91624544 | O85: 2.907491161 | P85: 2.824658118 | Q85: 2.744184949 | R85: 2.664771809 | S85: 2.589452404 | T85: 2.513935669 | U85: 2.374380928 | V85: 80.2973704
K86: 61 | L86: 2020-04-06 | M86: 98.93912007 | O86: 2.908163525 | P86: 2.825311327 | Q86: 2.744819549 | R86: 2.665388044 | S86: 2.590051222 | T86: 2.514517023 | U86: 2.37493001 | V86: 80.31593937
K87: 62 | L87: 2020-04-07 | M87: 98.962 | O87: 2.908836046 | P87: 2.825964688 | Q87: 2.745454295 | R87: 2.666004422 | S87: 2.590650178 | T87: 2.515098512 | U87: 2.375479219 | V87: 80.33451264
K88: 63 | L88: 2020-04-08 | M88: 98.98488522 | O88: 2.909508722 | P88: 2.826618199 | Q88: 2.746089188 | R88: 2.666620943 | S88: 2.591249272 | T88: 2.515680135 | U88: 2.376028554 | V88: 80.3530902
K89: 64 | L89: 2020-04-09 | M89: 99.00777572 | O89: =$K$5/(1+$L$22/100)^(($J$5-K89)/252) -> 2.910181553 | P89: =$K$6/(1+$L$22/100)^(($J$6-K89)/252) -> 2.827271862 | Q89: =$K$7/(1+$L$22/100)^(($J$7-K89)/252) -> 2.746724229 | R89: =$K$8/(1+$L$22/100)^(($J$8-K89)/252) -> 2.667237606 | S89: =$K$9/(1+$L$22/100)^(($J$9-K89)/252) -> 2.591848505 | T89: =$K$10/(1+$L$22/100)^(($J$10-K89)/252) -> 2.516261892 | U89: =$K$12/(1+$L$22/100)^(($J$12-K89)/252) -> 2.376578017 | V89: 80.37167206
K90: 65 | L90: 2020-04-10 | M90: =SUM(N90:V90) -> 99.03067153 | O90: 2.91085454 | P90: 2.827925676 | Q90: 2.747359416 | R90: 2.667854411 | S90: 2.592447877 | T90: 2.516843784 | U90: 2.377127607 | V90: =$K$13/(1+$L$22/100)^(($J$13-K90)/252) -> 80.39025822
K91: =K90+1 -> 66 | L91: 2020-04-11 | M91: 99.05357262 | O91: 2.911527682 | P91: 2.828579641 | Q91: 2.74799475 | R91: 2.668471359 | S91: 2.593047387 | T91: 2.517425811 | U91: 2.377677324 | V91: 80.40884867
K92: 67 | L92: 2020-04-12 | M92: 99.07647901 | O92: 2.912200981 | P92: 2.829233757 | Q92: 2.74863023 | R92: 2.66908845 | S92: 2.593647036 | T92: 2.518007972 | U92: 2.378227168 | V92: 80.42744342
K93: 68 | L93: 2020-04-13 | M93: 99.0993907 | O93: 2.912874435 | P93: 2.829888025 | Q93: 2.749265858 | R93: 2.669705684 | S93: 2.594246824 | T93: 2.518590268 | U93: 2.378777139 | V93: 80.44604247
K94: 69 | L94: 2020-04-14 | M94: 99.12230769 | O94: 2.913548044 | P94: 2.830542443 | Q94: 2.749901633 | R94: 2.67032306 | S94: 2.59484675 | T94: 2.519172698 | U94: 2.379327237 | V94: 80.46464583
K95: 70 | L95: 2020-04-15 | M95: 99.14522998 | O95: 2.91422181 | P95: 2.831197014 | Q95: 2.750537555 | R95: 2.670940579 | S95: 2.595446815 | T95: 2.519755263 | U95: 2.379877462 | V95: 80.48325348
K96: 71 | L96: 2020-04-16 | M96: 99.16815757 | O96: 2.914895731 | P96: 2.831851735 | Q96: 2.751173624 | R96: 2.671558241 | S96: 2.596047018 | T96: 2.520337963 | U96: 2.380427815 | V96: 80.50186544
K97: 72 | L97: 2020-04-17 | M97: 99.19109046 | O97: 2.915569808 | P97: 2.832506608 | Q97: 2.75180984 | R97: 2.672176045 | S97: 2.596647361 | T97: 2.520920798 | U97: 2.380978295 | V97: 80.5204817
K98: 73 | L98: 2020-04-18 | M98: 99.21402865 | O98: 2.916244041 | P98: 2.833161633 | Q98: 2.752446203 | R98: 2.672793993 | S98: 2.597247842 | T98: 2.521503767 | U98: 2.381528903 | V98: 80.53910227
K99: 74 | L99: 2020-04-19 | M99: 99.23697215 | O99: 2.91691843 | P99: 2.833816808 | Q99: 2.753082713 | R99: 2.673412083 | S99: 2.597848462 | T99: 2.522086871 | U99: 2.382079637 | V99: 80.55772714
K100: 75 | L100: 2020-04-20 | M100: 99.25992095 | O100: 2.917592975 | P100: 2.834472136 | Q100: 2.75371937 | R100: 2.674030317 | S100: 2.598449222 | T100: 2.52267011 | U100: 2.382630499 | V100: 80.57635632
K101: 76 | L101: 2020-04-21 | M101: 99.28287506 | O101: 2.918267676 | P101: 2.835127615 | Q101: 2.754356175 | R101: 2.674648693 | S101: 2.59905012 | T101: 2.523253484 | U101: 2.383181489 | V101: 80.59498981
K102: 77 | L102: 2020-04-22 | M102: 99.30583448 | O102: 2.918942532 | P102: 2.835783245 | Q102: 2.754993127 | R102: 2.675267213 | S102: 2.599651157 | T102: 2.523836993 | U102: 2.383732606 | V102: 80.61362761
K103: 78 | L103: 2020-04-23 | M103: 99.32879921 | O103: 2.919617545 | P103: 2.836439027 | Q103: 2.755630226 | R103: 2.675885875 | S103: 2.600252333 | T103: 2.524420637 | U103: 2.38428385 | V103: 80.63226972
K104: 79 | L104: 2020-04-24 | M104: 99.35176925 | O104: 2.920292714 | P104: 2.837094961 | Q104: 2.756267473 | R104: 2.67650468 | S104: 2.600853648 | T104: 2.525004416 | U104: 2.384835222 | V104: 80.65091614
K105: 80 | L105: 2020-04-25 | M105: 99.3747446 | O105: 2.92096804 | P105: 2.837751047 | Q105: 2.756904866 | R105: 2.677123629 | S105: 2.601455102 | T105: 2.525588329 | U105: 2.385386721 | V105: 80.66956687
K106: 81 | L106: 2020-04-26 | M106: 99.39772527 | O106: 2.921643521 | P106: 2.838407284 | Q106: 2.757542408 | R106: 2.677742721 | S106: 2.602056695 | T106: 2.526172378 | U106: 2.385938348 | V106: 80.68822191
K107: =K106+1 -> 82 | L107: 2020-04-27 | M107: 99.42071124 | O107: 2.922319158 | P107: 2.839063673 | Q107: 2.758180097 | R107: 2.678361956 | S107: 2.602658427 | T107: 2.526756562 | U107: 2.386490102 | V107: 80.70688127
K108: 83 | L108: 2020-04-28 | M108: 99.44370254 | O108: 2.922994952 | P108: 2.839720214 | Q108: 2.758817933 | R108: 2.678981334 | S108: 2.603260299 | T108: 2.527340881 | U108: 2.387041984 | V108: 80.72554494
K109: 84 | L109: 2020-04-29 | M109: 99.46669915 | O109: 2.923670902 | P109: 2.840376906 | Q109: 2.759455916 | R109: 2.679600855 | S109: 2.603862309 | T109: 2.527925335 | U109: 2.387593993 | V109: 80.74421293
K110: 85 | L110: 2020-04-30 | M110: 99.48970108 | O110: 2.924347009 | P110: 2.841033751 | Q110: 2.760094048 | R110: 2.680220519 | S110: 2.604464459 | T110: 2.528509924 | U110: 2.388146131 | V110: 80.76288524
K111: 86 | L111: 2020-05-01 | M111: 99.51270833 | O111: 2.925023271 | P111: 2.841690747 | Q111: 2.760732327 | R111: 2.680840327 | S111: 2.605066748 | T111: 2.529094648 | U111: 2.388698396 | V111: 80.78156186
K112: 87 | L112: 2020-05-02 | M112: 99.5357209 | O112: 2.925699691 | P112: 2.842347895 | Q112: 2.761370753 | R112: 2.681460279 | S112: 2.605669176 | T112: 2.529679508 | U112: 2.389250788 | V112: 80.80024281
K113: 88 | L113: 2020-05-03 | M113: 99.55873879 | O113: 2.926376266 | P113: 2.843005195 | Q113: 2.762009327 | R113: 2.682080373 | S113: 2.606271744 | T113: 2.530264503 | U113: 2.389803309 | V113: 80.81892807
K114: 89 | L114: 2020-05-04 | M114: 99.581762 | O114: 2.927052998 | P114: 2.843662648 | Q114: 2.762648049 | R114: 2.682700611 | S114: 2.606874451 | T114: 2.530849633 | U114: 2.390355957 | V114: 80.83761765
K115: 90 | L115: 2020-05-05 | M115: 99.60479054 | O115: 2.927729887 | P115: 2.844320252 | Q115: 2.763286918 | R115: 2.683320992 | S115: 2.607477297 | T115: 2.531434898 | U115: 2.390908733 | V115: 80.85631156
K116: 91 | L116: 2020-05-06 | M116: 99.6278244 | O116: 2.928406932 | P116: 2.844978008 | Q116: 2.763925935 | R116: 2.683941517 | S116: 2.608080283 | T116: 2.532020299 | U116: 2.391461636 | V116: 80.87500979
K117: 92 | L117: 2020-05-07 | M117: 99.65086359 | O117: 2.929084133 | P117: 2.845635917 | Q117: 2.7645651 | R117: 2.684562186 | S117: 2.608683409 | T117: 2.532605835 | U117: 2.392014668 | V117: 80.89371234
K118: 93 | L118: 2020-05-08 | M118: 99.67390811 | O118: 2.929761491 | P118: 2.846293977 | Q118: 2.765204413 | R118: 2.685182997 | S118: 2.609286673 | T118: 2.533191507 | U118: 2.392567828 | V118: 80.91241922
K119: 94 | L119: 2020-05-09 | M119: 99.69695795 | O119: 2.930439006 | P119: 2.84695219 | Q119: 2.765843874 | R119: 2.685803953 | S119: 2.609890077 | T119: 2.533777314 | U119: 2.393121115 | V119: 80.93113042
K120: 95 | L120: 2020-05-10 | M120: 99.72001313 | O120: 2.931116678 | P120: 2.847610555 | Q120: 2.766483482 | R120: 2.686425052 | S120: 2.610493621 | T120: 2.534363257 | U120: 2.39367453 | V120: 80.94984595
K121: 96 | L121: 2020-05-11 | M121: 99.74307364 | O121: =$K$5/(1+$L$22/100)^(($J$5-K121)/252) -> 2.931794506 | P121: 2.848269072 | Q121: 2.767123239 | R121: 2.687046295 | S121: 2.611097305 | T121: 2.534949335 | U121: 2.394228074 | V121: 80.96856581
K122: 97 | L122: 2020-05-12 | M122: 99.76613948 | O122: 2.932472491 | P122: 2.848927742 | Q122: 2.767763143 | R122: 2.687667681 | S122: 2.611701128 | T122: 2.535535548 | U122: 2.394781745 | V122: 80.98729
K123: =K122+1 -> 98 | L123: 2020-05-13 | M123: 99.78921065 | O123: 2.933150633 | P123: 2.849586564 | Q123: 2.768403195 | R123: 2.688289211 | S123: 2.61230509 | T123: 2.536121897 | U123: 2.395335544 | V123: 81.00601852
K124: 99 | L124: 2020-05-14 | M124: 99.81228716 | O124: 2.933828931 | P124: 2.850245538 | Q124: 2.769043395 | R124: 2.688910885 | S124: 2.612909192 | T124: 2.536708382 | U124: 2.395889472 | V124: 81.02475137
K125: 100 | L125: 2020-05-15 | M125: 99.83536901 | O125: 2.934507387 | P125: 2.850904664 | Q125: 2.769683744 | R125: 2.689532702 | S125: 2.613513434 | T125: 2.537295002 | U125: 2.396443528 | V125: 81.04348855
K126: 101 | L126: 2020-05-16 | M126: 99.8584562 | O126: 2.935185999 | P126: 2.851563943 | Q126: 2.77032424 | R126: 2.690154664 | S126: 2.614117816 | T126: 2.537881758 | U126: 2.396997711 | V126: 81.06223006
K127: 102 | L127: 2020-05-17 | M127: 99.88154872 | O127: 2.935864769 | P127: 2.852223375 | Q127: 2.770964885 | R127: 2.690776769 | S127: 2.614722337 | T127: 2.53846865 | U127: 2.397552023 | V127: 81.08097591
K128: 103 | L128: 2020-05-18 | M128: 99.90464658 | O128: 2.936543695 | P128: 2.852882959 | Q128: 2.771605678 | R128: 2.691399018 | S128: 2.615326999 | T128: 2.539055677 | U128: 2.398106463 | V128: 81.0997261
K129: 104 | L129: 2020-05-19 | M129: 99.92774979 | O129: 2.937222778 | P129: 2.853542695 | Q129: 2.772246619 | R129: 2.692021411 | S129: 2.6159318 | T129: 2.53964284 | U129: 2.398661031 | V129: 81.11848062
K130: 105 | L130: 2020-05-20 | M130: 99.95085834 | O130: 2.937902018 | P130: 2.854202584 | Q130: 2.772887708 | R130: 2.692643948 | S130: 2.616536741 | T130: 2.540230139 | U130: 2.399215728 | V130: 81.13723947
K131: 106 | L131: 2020-05-21 | M131: 99.97397223 | O131: 2.938581416 | P131: 2.854862626 | Q131: 2.773528945 | R131: 2.693266628 | S131: 2.617141821 | T131: 2.540817574 | U131: 2.399770553 | V131: 81.15600267
K132: 107 | L132: 2020-05-22 | M132: 99.99709147 | O132: 2.93926097 | P132: 2.85552282 | Q132: 2.774170331 | R132: 2.693889453 | S132: 2.617747042 | T132: 2.541405144 | U132: 2.400325506 | V132: 81.1747702
K133: 108 | L133: 2020-05-23 | M133: 100.020216 | O133: 2.939940682 | P133: 2.856183167 | Q133: 2.774811865 | R133: 2.694512422 | S133: 2.618352403 | T133: 2.541992851 | U133: 2.400880587 | V133: 81.19354207
K134: 109 | L134: 2020-05-24 | M134: 100.043346 | O134: 2.940620551 | P134: 2.856843667 | Q134: 2.775453547 | R134: 2.695135535 | S134: 2.618957904 | T134: 2.542580693 | U134: 2.401435797 | V134: 81.21231829
K135: 110 | L135: 2020-05-25 | M135: 100.0664813 | O135: 2.941300577 | P135: 2.857504319 | Q135: 2.776095378 | R135: 2.695758792 | S135: 2.619563544 | T135: 2.543168672 | U135: 2.401991135 | V135: 81.23109884
K136: 111 | L136: 2020-05-26 | M136: 100.0896219 | O136: 2.94198076 | P136: 2.858165125 | Q136: 2.776737357 | R136: 2.696382193 | S136: 2.620169325 | T136: 2.543756786 | U136: 2.402546602 | V136: 81.24988374
K137: 112 | L137: 2020-05-27 | M137: 100.1127679 | O137: 2.9426611 | P137: 2.858826083 | Q137: 2.777379485 | R137: 2.697005738 | S137: 2.620775246 | T137: 2.544345036 | U137: 2.403102197 | V137: 81.26867299
K138: 113 | L138: 2020-05-28 | M138: 100.1359192 | O138: 2.943341598 | P138: 2.859487193 | Q138: 2.778021761 | R138: 2.697629428 | S138: 2.621381307 | T138: 2.544933422 | U138: 2.40365792 | V138: 81.28746658
K139: =K138+1 -> 114 | L139: 2020-05-29 | M139: 100.1590759 | O139: 2.944022254 | P139: 2.860148457 | Q139: 2.778664185 | R139: 2.698253261 | S139: 2.621987508 | T139: 2.545521945 | U139: 2.404213772 | V139: 81.30626451
K140: 115 | L140: 2020-05-30 | M140: 100.1822379 | O140: 2.944703066 | P140: 2.860809874 | Q140: 2.779306759 | R140: 2.698877239 | S140: 2.622593849 | T140: 2.546110603 | U140: 2.404769753 | V140: 81.32506679
K141: 116 | L141: 2020-05-31 | M141: 100.2054053 | O141: 2.945384036 | P141: 2.861471443 | Q141: 2.77994948 | R141: 2.699501362 | S141: 2.623200331 | T141: 2.546699398 | U141: 2.405325862 | V141: 81.34387342
K142: 117 | L142: 2020-06-01 | M142: 100.2285781 | O142: 2.946065164 | P142: 2.862133166 | Q142: 2.780592351 | R142: 2.700125628 | S142: 2.623806953 | T142: 2.547288329 | U142: 2.4058821 | V142: 81.3626844
K143: 118 | L143: 2020-06-02 | M143: 100.2517562 | O143: 2.946746449 | P143: 2.862795042 | Q143: 2.78123537 | R143: 2.700750039 | S143: 2.624413715 | T143: 2.547877396 | U143: 2.406438466 | V143: 81.38149973
K144: 119 | L144: 2020-06-03 | M144: 100.2749397 | O144: 2.947427892 | P144: 2.86345707 | Q144: 2.781878538 | R144: 2.701374595 | S144: 2.625020617 | T144: 2.548466599 | U144: 2.406994961 | V144: 81.40031941
K145: 120 | L145: 2020-06-04 | M145: 100.2981285 | O145: 2.948109492 | P145: 2.864119252 | Q145: 2.782521854 | R145: 2.701999294 | S145: 2.62562766 | T145: 2.549055938 | U145: 2.407551585 | V145: 81.41914344
K146: 121 | L146: 2020-06-05 | M146: 100.3213227 | O146: 2.94879125 | P146: 2.864781587 | Q146: 2.78316532 | R146: 2.702624139 | S146: 2.626234843 | T146: 2.549645414 | U146: 2.408108338 | V146: 81.43797183
K147: 122 | L147: 2020-06-06 | M147: 100.3445223 | O147: 2.949473165 | P147: 2.865444075 | Q147: 2.783808934 | R147: 2.703249127 | S147: 2.626842167 | T147: 2.550235026 | U147: 2.408665219 | V147: 81.45680457
K148: 123 | L148: 2020-06-07 | M148: 100.3677272 | O148: 2.950155239 | P148: 2.866106716 | Q148: 2.784452697 | R148: 2.703874261 | S148: 2.627449631 | T148: 2.550824774 | U148: 2.409222229 | V148: 81.47564166
K149: 124 | L149: 2020-06-08 | M149: 100.3909375 | O149: 2.95083747 | P149: 2.866769511 | Q149: 2.785096608 | R149: 2.704499539 | S149: 2.628057235 | T149: 2.551414659 | U149: 2.409779368 | V149: 81.49448311
K150: 125 | L150: 2020-06-09 | M150: 100.4141532 | O150: 2.951519858 | P150: 2.867432459 | Q150: 2.785740669 | R150: 2.705124961 | S150: 2.62866498 | T150: 2.55200468 | U150: 2.410336635 | V150: 81.51332892
K151: 126 | L151: 2020-06-10 | M151: 100.4373742 | O151: 2.952202405 | P151: 2.86809556 | Q151: 2.786384879 | R151: 2.705750528 | S151: 2.629272866 | T151: 2.552594838 | U151: 2.410894032 | V151: 81.53217909
K152: 127 | L152: 2020-06-11 | M152: 100.4606006 | O152: 2.952885109 | P152: 2.868758814 | Q152: 2.787029237 | R152: 2.70637624 | S152: 2.629880892 | T152: 2.553185132 | U152: 2.411451557 | V152: 81.55103361
K153: 128 | L153: 2020-06-12 | M153: 100.4838324 | O153: 2.953567972 | P153: =$K$6/(1+$L$22/100)^(($J$6-K153)/252) -> 2.869422222 | Q153: =$K$7/(1+$L$22/100)^(($J$7-K153)/252) -> 2.787673745 | R153: =$K$8/(1+$L$22/100)^(($J$8-K153)/252) -> 2.707002096 | S153: =$K$9/(1+$L$22/100)^(($J$9-K153)/252) -> 2.630489058 | T153: =$K$10/(1+$L$22/100)^(($J$10-K153)/252) -> 2.553775563 | U153: =$K$12/(1+$L$22/100)^(($J$12-K153)/252) -> 2.412009212 | V153: 81.5698925
K154: 129 | L154: 2020-06-13 | M154: =SUM(N154:V154) -> 100.5070695 | O154: 2.954250992 | P154: 2.870085783 | Q154: 2.788318402 | R154: 2.707628097 | S154: 2.631097366 | T154: 2.55436613 | U154: 2.412566995 | V154: =$K$13/(1+$L$22/100)^(($J$13-K154)/252) -> 81.58875574
K155: =K154+1 -> 130 | L155: 2020-06-14 | M155: 100.530312 | O155: 2.95493417 | P155: 2.870749498 | Q155: 2.788963208 | R155: 2.708254243 | S155: 2.631705814 | T155: 2.554956833 | U155: 2.413124907 | V155: 81.60762335
K156: 131 | L156: 2020-06-15 | M156: 100.5535599 | O156: 2.955617506 | P156: 2.871413366 | Q156: 2.789608162 | R156: 2.708880534 | S156: 2.632314402 | T156: 2.555547674 | U156: 2.413682948 | V156: 81.62649532
K157: 132 | L157: 2020-06-16 | M157: 100.5768132 | O157: 2.956301 | P157: 2.872077388 | Q157: 2.790253266 | R157: 2.70950697 | S157: 2.632923132 | T157: 2.556138651 | U157: 2.414241119 | V157: 81.64537166
K158: 133 | L158: 2020-06-17 | M158: 97.64308718 | P158: 2.872741563 | Q158: 2.79089852 | R158: 2.71013355 | S158: 2.633532002 | T158: 2.556729764 | U158: 2.414799418 | V158: 81.66425236
K159: 134 | L159: 2020-06-18 | M159: 97.66566739 | P159: 2.873405892 | Q159: 2.791543922 | R159: 2.710760275 | S159: 2.634141013 | T159: 2.557321015 | U159: 2.415357847 | V159: 81.68313743
K160: 135 | L160: 2020-06-19 | M160: 97.68825283 | P160: 2.874070374 | Q160: 2.792189474 | R160: 2.711387146 | S160: 2.634750165 | T160: 2.557912402 | U160: 2.415916405 | V160: 81.70202686
K161: 136 | L161: 2020-06-20 | M161: 97.71084349 | P161: 2.874735011 | Q161: 2.792835175 | R161: 2.712014161 | S161: 2.635359458 | T161: 2.558503925 | U161: 2.416475091 | V161: 81.72092067
K162: 137 | L162: 2020-06-21 | M162: 97.73343937 | P162: 2.8753998 | Q162: 2.793481025 | R162: 2.712641321 | S162: 2.635968891 | T162: 2.559095586 | U162: 2.417033907 | V162: 81.73981884
K163: 138 | L163: 2020-06-22 | M163: 97.75604048 | P163: 2.876064744 | Q163: 2.794127025 | R163: 2.713268626 | S163: 2.636578466 | T163: 2.559687383 | U163: 2.417592853 | V163: 81.75872138
K164: 139 | L164: 2020-06-23 | M164: 97.77864681 | P164: 2.876729841 | Q164: 2.794773174 | R164: 2.713896077 | S164: 2.637188181 | T164: 2.560279318 | U164: 2.418151927 | V164: 81.7776283
K165: 140 | L165: 2020-06-24 | M165: 97.80125838 | P165: 2.877395092 | Q165: 2.795419472 | R165: 2.714523672 | S165: 2.637798038 | T165: 2.560871389 | U165: 2.418711131 | V165: 81.79653958
K166: 141 | L166: 2020-06-25 | M166: =SUM(N166:V166)-O166 -> 97.82387517 | P166: 2.878060497 | Q166: 2.79606592 | R166: 2.715151413 | S166: 2.638408035 | T166: 2.561463597 | U166: 2.419270464 | V166: 81.81545524
K167: 142 | L167: 2020-06-26 | M167: 97.84649719 | P167: 2.878726056 | Q167: 2.796712517 | R167: 2.715779298 | S167: 2.639018174 | T167: 2.562055942 | U167: 2.419829927 | V167: 81.83437527
K168: 143 | L168: 2020-06-27 | M168: 97.86912444 | P168: 2.879391769 | Q168: 2.797359264 | R168: 2.716407329 | S168: 2.639628454 | T168: 2.562648424 | U168: 2.420389519 | V168: 81.85329968
K169: 144 | L169: 2020-06-28 | M169: 97.89175693 | P169: 2.880057636 | Q169: 2.798006161 | R169: 2.717035505 | S169: 2.640238875 | T169: 2.563241043 | U169: 2.42094924 | V169: 81.87222847
K170: 145 | L170: 2020-06-29 | M170: 97.91439465 | P170: 2.880723656 | Q170: 2.798653207 | R170: 2.717663827 | S170: 2.640849437 | T170: 2.563833799 | U170: 2.421509091 | V170: 81.89116163
K171: =K170+1 -> 146 | L171: 2020-06-30 | M171: 97.9370376 | P171: 2.881389831 | Q171: 2.799300403 | R171: 2.718292294 | S171: 2.64146014 | T171: 2.564426692 | U171: 2.422069071 | V171: 81.91009917
K172: 147 | L172: 2020-07-01 | M172: 97.95968579 | P172: 2.88205616 | Q172: 2.799947748 | R172: 2.718920906 | S172: 2.642070984 | T172: 2.565019722 | U172: 2.42262918 | V172: 81.92904109
K173: 148 | L173: 2020-07-02 | M173: 97.98233922 | P173: 2.882722643 | Q173: 2.800595243 | R173: 2.719549663 | S173: 2.64268197 | T173: 2.56561289 | U173: 2.42318942 | V173: 81.94798739
K174: 149 | L174: 2020-07-03 | M174: 98.00499789 | P174: 2.88338928 | Q174: 2.801242888 | R174: 2.720178566 | S174: 2.643293097 | T174: 2.566206194 | U174: 2.423749788 | V174: 81.96693807
K175: 150 | L175: 2020-07-04 | M175: 98.02766179 | P175: 2.884056071 | Q175: 2.801890683 | R175: 2.720807614 | S175: 2.643904365 | T175: 2.566799636 | U175: 2.424310287 | V175: 81.98589314
K176: 151 | L176: 2020-07-05 | M176: 98.05033094 | P176: 2.884723016 | Q176: 2.802538627 | R176: 2.721436808 | S176: 2.644515775 | T176: 2.567393215 | U176: 2.424870915 | V176: 82.00485259
K177: 152 | L177: 2020-07-06 | M177: 98.07300533 | P177: 2.885390116 | Q177: 2.803186721 | R177: 2.722066147 | S177: 2.645127326 | T177: 2.567986931 | U177: 2.425431672 | V177: 82.02381642
K178: 153 | L178: 2020-07-07 | M178: 98.09568497 | P178: 2.88605737 | Q178: 2.803834965 | R178: 2.722695632 | S178: 2.645739018 | T178: 2.568580785 | U178: 2.42599256 | V178: 82.04278464
K179: 154 | L179: 2020-07-08 | M179: 98.11836984 | P179: 2.886724778 | Q179: 2.804483359 | R179: 2.723325262 | S179: 2.646350852 | T179: 2.569174776 | U179: 2.426553577 | V179: 82.06175724
K180: 155 | L180: 2020-07-09 | M180: 98.14105997 | P180: 2.88739234 | Q180: 2.805131903 | R180: 2.723955038 | S180: 2.646962828 | T180: 2.569768904 | U180: 2.427114723 | V180: 82.08073423
K181: 156 | L181: 2020-07-10 | M181: 98.16375534 | P181: 2.888060057 | Q181: 2.805780597 | R181: 2.72458496 | S181: 2.647574945 | T181: 2.57036317 | U181: 2.427676 | V181: 82.09971561
K182: 157 | L182: 2020-07-11 | M182: 98.18645596 | P182: 2.888727929 | Q182: 2.806429441 | R182: 2.725215027 | S182: 2.648187203 | T182: 2.570957573 | U182: 2.428237406 | V182: 82.11870138
K183: 158 | L183: 2020-07-12 | M183: 98.20916183 | P183: 2.889395954 | Q183: 2.807078435 | R183: 2.72584524 | S183: 2.648799603 | T183: 2.571552113 | U183: 2.428798942 | V183: 82.13769154
K184: 159 | L184: 2020-07-13 | M184: 98.23187295 | P184: 2.890064135 | Q184: 2.807727579 | R184: 2.726475599 | S184: 2.649412145 | T184: 2.572146791 | U184: 2.429360608 | V184: 82.15668609
K185: 160 | L185: 2020-07-14 | M185: 98.25458932 | P185: 2.890732469 | Q185: 2.808376873 | R185: 2.727106103 | S185: 2.650024828 | T185: 2.572741607 | U185: 2.429922404 | V185: 82.17568504
K186: 161 | L186: 2020-07-15 | M186: 98.27731095 | P186: 2.891400959 | Q186: 2.809026318 | R186: 2.727736753 | S186: 2.650637653 | T186: 2.57333656 | U186: 2.43048433 | V186: 82.19468837
K187: =K186+1 -> 162 | L187: 2020-07-16 | M187: 98.30003783 | P187: 2.892069602 | Q187: 2.809675912 | R187: 2.728367549 | S187: 2.65125062 | T187: 2.57393165 | U187: 2.431046386 | V187: 82.21369611
K188: 163 | L188: 2020-07-17 | M188: 98.32276996 | P188: 2.892738401 | Q188: 2.810325657 | R188: 2.728998491 | S188: 2.651863728 | T188: 2.574526879 | U188: 2.431608571 | V188: 82.23270823
K189: 164 | L189: 2020-07-18 | M189: 98.34550735 | P189: 2.893407354 | Q189: 2.810975552 | R189: 2.729629579 | S189: 2.652476979 | T189: 2.575122245 | U189: 2.432170887 | V189: 82.25172476
K190: 165 | L190: 2020-07-19 | M190: 98.36825 | P190: 2.894076462 | Q190: 2.811625597 | R190: 2.730260813 | S190: 2.653090371 | T190: 2.575717748 | U190: 2.432733333 | V190: 82.27074568
K191: 166 | L191: 2020-07-20 | M191: 98.39099791 | P191: 2.894745725 | Q191: 2.812275793 | R191: 2.730892193 | S191: 2.653703905 | T191: 2.57631339 | U191: 2.433295908 | V191: 82.289771
K192: 167 | L192: 2020-07-21 | M192: 98.41375108 | P192: 2.895415142 | Q192: 2.812926139 | R192: 2.731523719 | S192: 2.654317581 | T192: 2.576909169 | U192: 2.433858614 | V192: 82.30880072
K193: 168 | L193: 2020-07-22 | M193: 98.43650952 | P193: 2.896084714 | Q193: 2.813576635 | R193: 2.732155391 | S193: 2.654931398 | T193: 2.577505085 | U193: 2.43442145 | V193: 82.32783484
K194: 169 | L194: 2020-07-23 | M194: 98.45927321 | P194: 2.896754441 | Q194: 2.814227282 | R194: 2.732787209 | S194: 2.655545358 | T194: 2.57810114 | U194: 2.434984417 | V194: 82.34687336
K195: 170 | L195: 2020-07-24 | M195: 98.48204217 | P195: 2.897424323 | Q195: 2.814878079 | R195: 2.733419173 | S195: 2.65615946 | T195: 2.578697333 | U195: 2.435547513 | V195: 82.36591629
K196: 171 | L196: 2020-07-25 | M196: 98.50481639 | P196: 2.89809436 | Q196: 2.815529027 | R196: 2.734051283 | S196: 2.656773703 | T196: 2.579293663 | U196: 2.43611074 | V196: 82.38496362
K197: 172 | L197: 2020-07-26 | M197: 98.52759589 | P197: 2.898764551 | Q197: 2.816180125 | R197: 2.734683539 | S197: 2.657388089 | T197: 2.579890131 | U197: 2.436674096 | V197: 82.40401535
K198: 173 | L198: 2020-07-27 | M198: 98.55038064 | P198: 2.899434898 | Q198: 2.816831374 | R198: 2.735315942 | S198: 2.658002617 | T198: 2.580486737 | U198: 2.437237584 | V198: 82.42307149
K199: 174 | L199: 2020-07-28 | M199: 98.57317067 | P199: 2.9001054 | Q199: 2.817482774 | R199: 2.735948491 | S199: 2.658617287 | T199: 2.581083482 | U199: 2.437801201 | V199: 82.44213204
K200: 175 | L200: 2020-07-29 | M200: 98.59596597 | P200: 2.900776057 | Q200: 2.818134324 | R200: 2.736581186 | S200: 2.659232099 | T200: 2.581680364 | U200: 2.438364949 | V200: 82.46119699
K201: 176 | L201: 2020-07-30 | M201: 98.61876654 | P201: 2.901446869 | Q201: 2.818786025 | R201: 2.737214027 | S201: 2.659847053 | T201: 2.582277384 | U201: 2.438928827 | V201: 82.48026636
K202: 177 | L202: 2020-07-31 | M202: 98.64157238 | P202: 2.902117836 | Q202: 2.819437876 | R202: 2.737847015 | S202: 2.660462149 | T202: 2.582874542 | U202: 2.439492835 | V202: 82.49934013
K203: =K202+1 -> 178 | L203: 2020-08-01 | M203: 98.6643835 | P203: 2.902788958 | Q203: 2.820089878 | R203: 2.738480149 | S203: 2.661077388 | T203: 2.583471839 | U203: 2.440056974 | V203: 82.51841831
K204: 179 | L204: 2020-08-02 | M204: 98.68719989 | P204: 2.903460235 | Q204: 2.820742031 | R204: 2.739113429 | S204: 2.661692769 | T204: 2.584069273 | U204: 2.440621244 | V204: 82.53750091
... 382 more rows

Sheet Ex_NTN-B
A1: IV | B1: Calculo FLUXO E PU NTN-B
B2: NTN-B
F3: DT. LIQ. | G3: DU | H3: VR. FUTURO | I3: VR. PRESENTE | J3: PU | K3: Fin | L3: VP * Prazo
B4: LIQUIDAÇÃO | C4: 2020-02-05 | F4: 2020-02-17 | G4: =NETWORKDAYS($C$4,F4,Feriado)-1 -> 8 | H4: =$C$6 -> 2.956301 | I4: =H4/(1+$C$9/100)^(G4/252) -> 2.954234965 | J4: =I4*$C$8/100 -> 97.54648051 | K4: =J4*$C$11 -> 487732.4025 | L4: =I4*G4 -> 23.63387972
B5: JUROS | C5: 6 | F5: 2020-08-17 | G5: 132 | H5: 2.956301 | I5: 2.922395427 | J5: 96.4951644 | K5: 482475.822 | L5: 385.7561964
B6: CUPOM DE JUROS | C6: =ROUND((1+C5/100)^(1/2)-1,8)*100 -> 2.956301 | F6: 2021-02-17 | G6: 257 | H6: 2.956301 | I6: 2.890646425 | J6: 95.4468377 | K6: 477234.1885 | L6: 742.8961313
B7: VN | C7: 1000 | F7: 2021-08-16 | G7: 382 | H7: 2.956301 | I7: 2.859242345 | J7: 94.40990005 | K7: 472049.5002 | L7: 1092.230576
B8: VNA (05/02) | C8: =C12*C17 -> 3301.920182 | F8: 2022-02-15 | G8: 509 | H8: 2.956301 | I8: 2.827685187 | J8: 93.36790786 | K8: 466839.5393 | L8: 1439.29176
B9: TAXA | C9: ='NTN-B'!$E$9 -> 2.2266 | F9: 2022-08-15 | G9: 633 | H9: 2.956301 | I9: 2.797209551 | J9: 92.3616267 | K9: 461808.1335 | L9: 1770.633646
B10: VENCIMENTO | C10: 2024-08-15 | F10: 2023-02-15 | G10: 761 | H10: 2.956301 | I10: 2.766095309 | J10: 91.33425924 | K10: 456671.2962 | L10: 2104.99853
B11: estoque | C11: 5000 | F11: 2023-08-15 | G11: 884 | H11: 2.956301 | I11: 2.736522592 | J11: 90.35779175 | K11: 451788.9587 | L11: 2419.085971
B12: VNA (15/01) | C12: ='NTN-B'!$E$12 -> 3297.200765 | F12: 2024-02-15 | G12: 1008 | H12: 2.956301 | I12: 2.70702947 | J12: 89.38395239 | K12: 446919.762 | L12: 2728.685706
F13: 2024-08-15 | G13: 1135 | H13: =$C$6+100 -> 102.956301 | I13: 93.23465196 | J13: 3078.533789 | K13: 15392668.95 | L13: 105821.33
B14: PROJ IPCA DO MÊS (%) | C14: ='NTN-B'!$E$14 -> 0.21 | H14: COTAÇÃO | I14: =SUM(I4:I13) -> 118.6957132 | J14: =SUM(J4:J13) -> 3919.23771 | K14: =SUM(K4:K13) -> 19596188.55 | L14: =SUM(L4:L13) -> 118528.5424
B15: DU MÊS | C15: =NETWORKDAYS(D16,E16,Feriado)-1 -> 22 | D15: DU I | E15: DU F | H15: PU | I15: =I14*C8/100 -> 3919.23771
B16: DU LIQ | C16: =NETWORKDAYS(D17,E17,Feriado)-1 -> 15 | D16: 2020-01-15 | E16: 2020-02-15 | K16: Duration | L16: =L14/I14 -> 998.5916015
B17: PRO RATA | C17: =(1+C14/100)^(C16/C15) -> 1.00143134 | D17: =D16 -> 2020-01-15 | E17: =C4 -> 2020-02-05 | K17: Mod Duration | L17: =L16/(1+C9/100) -> 976.8412542
E22: TAXA | F22: DU | G22: VF | H22: VPL | I22: Financeiro | J22: FIN * DU | K22: Qtde Contratos | L22: Qtde Ajustada
B23: ATINGIR META = 0 | C23: =I34-K14 -> 0
B24: Ajuste DI | C24: 1 | E24: =VLOOKUP(F24,BALANCEAMENTO!B6:C30,2) -> 4.2 | F24: =VLOOKUP(G4,BALANCEAMENTO!$A$6:$C$30,2) -> 16 | G24: =100000 -> 100000 | H24: =G24/((1+E24/100)^($F24/252)) -> 99739.12219 | I24: =H24*L24 -> 487732.4025 | J24: =I24*F24 -> 7803718.441 | K24: =K4/H24 -> 4.890081162 | L24: =$C$24*K24 -> 4.890081162
E25: =VLOOKUP(F25,BALANCEAMENTO!B7:C31,2) -> 4.15 | F25: =VLOOKUP(G5,BALANCEAMENTO!$A$6:$C$31,2) -> 143 | G25: =100000 -> 100000 | H25: 97719.01094 | I25: =H25*L25 -> 482475.822 | J25: 68994042.55 | K25: 4.937379302 | L25: 4.937379302
B26: Taxa Média | C26: =Cubic_Spline(F24:F33,E24:E33,C28) -> 5.96495659 | E26: =VLOOKUP(F26,BALANCEAMENTO!B8:C32,2) -> 4.45 | F26: =VLOOKUP(G6,BALANCEAMENTO!$A$6:$C$31,2) -> 288 | G26: 100000 | H26: 95145.95933 | I26: 477234.1885 | J26: 137443446.3 | K26: 5.015811411 | L26: 5.015811411
E27: =VLOOKUP(F27,BALANCEAMENTO!B9:C33,2) -> 4.77 | F27: =VLOOKUP(G7,BALANCEAMENTO!$A$6:$C$31,2) -> 415 | G27: 100000 | H27: 92613.28455 | I27: 472049.5002 | J27: 195900542.6 | K27: 5.096995561 | L27: 5.096995561
B28: Duration | C28: =J34/I34 -> 1028.646106 | E28: =VLOOKUP(F28,BALANCEAMENTO!B10:C34,2) -> 5.07 | F28: =VLOOKUP(G8,BALANCEAMENTO!$A$6:$C$31,2) -> 540 | G28: 100000 | H28: 89944.40334 | I28: 466839.5393 | J28: 252093351.2 | K28: 5.190312259 | L28: 5.190312259
B29: Mod Duration | C29: =C28/(1+C26/100) -> 970.7417806 | E29: =VLOOKUP(F29,BALANCEAMENTO!B11:C35,2) -> 5.32 | F29: =VLOOKUP(G9,BALANCEAMENTO!$A$6:$C$31,2) -> 667 | G29: 100000 | H29: 87180.16956 | I29: 461808.1335 | J29: 308026025.1 | K29: 5.297169481 | L29: 5.297169481
E30: =VLOOKUP(F30,BALANCEAMENTO!B12:C36,2) -> 5.53 | F30: =VLOOKUP(G10,BALANCEAMENTO!$A$6:$C$31,2) -> 792 | G30: 100000 | H30: 84436.9944 | I30: 456671.2962 | J30: 361683666.6 | K30: 5.408426715 | L30: 5.408426715
E31: =VLOOKUP(F31,BALANCEAMENTO!B13:C37,2) -> 5.74 | F31: =VLOOKUP(G11,BALANCEAMENTO!$A$6:$C$31,2) -> 917 | G31: 100000 | H31: 81619.86244 | I31: 451788.9587 | J31: 414290475.2 | K31: 5.535282041 | L31: 5.535282041
E32: =VLOOKUP(F32,BALANCEAMENTO!B14:C38,2) -> 5.979 | F32: =VLOOKUP(G12,BALANCEAMENTO!$A$6:$C$31,2) -> 1037 | G32: 100000 | H32: 78744.17738 | I32: 446919.762 | J32: 463455793.1 | K32: 5.675591223 | L32: 5.675591223
E33: =VLOOKUP(F33,BALANCEAMENTO!B15:C39,2) -> 6.119 | F33: =VLOOKUP(G13,BALANCEAMENTO!$A$6:$C$31,2) -> 1166 | G33: 100000 | H33: =G33/((1+E33/100)^($F33/252)) -> 75972.34117 | I33: =H33*L33 -> 15392668.95 | J33: =I33*F33 -> 1.794785199e+10 | K33: 202.6088536 | L33: =$C$24*K33 -> 202.6088536
I34: =SUM(I24:I33) -> 19596188.55 | J34: =SUM(J24:J33) -> 2.015754305e+10
B36: Valor de B para imunizar A | E36: Ft. Ajuste hedge | F36: =L17/C29 -> 1.006283312 | G36: Fin Ajustado | H36: =K14*C24 -> 19596188.55
B40: DU | C40: 0 | E40: VNA | F40: =C8*(1+H417/100) -> 3301.920182
B41: Var Taxa de juros | C41: 1 | E41: Inflaçao anual | H41: 1
B43: NTN-B | H43: BM&F
B44: DU | C44: Taxa | D44: VF | E44: VPL | F44: Fin | H44: TAXA | I44: DU | J44: VF | K44: VPL | L44: Fin | M44: Qtde Ajustada MD
B45: =G4-$C$40 -> 8 | C45: =+$C$41+$C$9 -> 3.2266 | D45: =H4 -> 2.956301 | E45: =D45/((1+$C45/100)^($B45/252)) -> 2.953322139 | F45: =E45/100*$C$11*F$40 -> 487581.6987 | H45: =E24+$H$41 -> 5.2 | I45: =F24-$C$40 -> 16 | J45: =G24 -> 100000 | K45: =J45/((1+H45/100)^(I45/252)) -> 99678.65637 | L45: =K45*M45 -> 487436.7198 | M45: =L24 -> 4.890081162
B46: 132 | C46: =+$C$41+$C$9 -> 3.2266 | D46: 2.956301 | E46: =D46/((1+$C46/100)^($B46/252)) -> 2.907531756 | F46: 480021.8892 | H46: =E25+$H$41 -> 5.15 | I46: 143 | J46: 100000 | K46: 97190.56364 | L46: 479866.6773 | M46: 4.937379302
B47: 257 | C47: =+$C$41+$C$9 -> 3.2266 | D47: 2.956301 | E47: 2.862090643 | F47: 472519.7428 | H47: 5.45 | I47: 288 | J47: 100000 | K47: 94115.4768 | L47: 472065.4824 | M47: 5.015811411
B48: 382 | C48: =+$C$41+$C$9 -> 3.2266 | D48: 2.956301 | E48: 2.817359719 | F48: 465134.8457 | H48: 5.77 | I48: 415 | J48: 100000 | K48: 91175.72158 | L48: 464722.2482 | M48: 5.096995561
B49: 509 | C49: =+$C$41+$C$9 -> 3.2266 | D49: 2.956301 | E49: 2.772628996 | F49: 457749.9819 | H49: 6.07 | I49: 540 | J49: 100000 | K49: 88137.10494 | L49: 457459.0963 | M49: 5.190312259
B50: 633 | C50: =+$C$41+$C$9 -> 3.2266 | D50: 2.956301 | E50: 2.729640206 | F50: 450652.7043 | H50: 6.32 | I50: 667 | J50: 100000 | K50: 85026.60271 | L50: 450400.3249 | M50: 5.297169481
B51: 761 | C51: =+$C$41+$C$9 -> 3.2266 | D51: 2.956301 | E51: 2.685963691 | F51: 443441.886 | H51: 6.53 | I51: 792 | J51: 100000 | K51: 81970.89141 | L51: 443333.5589 | M51: 5.408426715
B52: 884 | C52: =+$C$41+$C$9 -> 3.2266 | D52: 2.956301 | E52: 2.644651873 | F52: 436621.4696 | H52: 6.74 | I52: 917 | J52: 100000 | K52: 78871.56752 | L52: 436576.3713 | M52: 5.535282041
B53: 1008 | C53: =+$C$41+$C$9 -> 3.2266 | D53: 2.956301 | E53: 2.603647331 | F53: 429851.7834 | H53: 6.979 | I53: 1037 | J53: 100000 | K53: 75758.99547 | L53: 429977.0897 | M53: 5.675591223
B54: 1135 | C54: =+$C$41+$C$9 -> 3.2266 | D54: 102.956301 | E54: =D54/((1+$C54/100)^($B54/252)) -> 89.23513772 | F54: 14732365.11 | H54: 7.119 | I54: 1166 | J54: 100000 | K54: =J54/((1+H54/100)^(I54/252)) -> 72745.83508 | L54: =K54*M54 -> 14738950.25 | M54: 202.6088536
F55: =SUM(F45:F54) -> 18855941.11 | L55: =SUM(L45:L54) -> 18860787.81
B57: Variação ocorrida em A | C57: =F55-K14 -> -740247.4411 | E57: Imunização | I57: PRE
B58: Variação ocorrida em B | C58: =I34-L55 -> 735400.7357 | E58: =C57+C58 -> -4846.705349 | H58: CUPOM REAL = | I58: =(1+(C26+H41)/100-1)*100 -> 6.96495659 | K58: 3.656931356
H59: =(1+(C9+C41)/100-1)*100 -> 3.2266 | I59: =((1+I58/100)/(1+H59/100)-1)*100 -> 3.621505106 | K59: =I59-K58 -> -0.03542625017
I60: INFLAÇÃO

Sheet BALANCEAMENTO
B3: BM&F
F4: Ativo Renda Fixa | L4: Balanceamento dinâmico
A5: DU-1 | B5: DU | C5: BMF | D5: pu
A6: 0 | B6: =BMF!B5 -> 16 | C6: =BMF!C5 -> 4.2 | D6: =100000/(1+C6/100)^(B6/252) -> 99739.12219 | I6: VN | N6: PU | O6: DU
A7: =B6 -> 16 | B7: =BMF!B6 -> 38 | C7: =BMF!C6 -> 4.18 | D7: =100000/(1+C7/100)^(B7/252) -> 99384.40282 | I7: =G15*(1+G10/100)^(I13/252) -> 128.501483 | L7: Contrato longo | N7: =VLOOKUP(O7,B6:D31,3) -> 78744.17738 | O7: =VLOOKUP(I13,A6:C31,2) -> 1037
A8: =B7 -> 38 | B8: =BMF!B7 -> 58 | C8: =BMF!C7 -> 4.15 | D8: 99068.49464
A9: 58 | B9: =BMF!B8 -> 78 | C9: =BMF!C8 -> 4.16 | D9: 98746.36736 | L9: Quantidade = Fin/PU * (DU ATIVO/DU FUTURO)
A10: 78 | B10: =BMF!B9 -> 99 | C10: =BMF!C9 -> 4.155 | D10: 98413.40026 | F10: Taxa | G10: =Cubic_Spline(ANBIMA!L6:L20,ANBIMA!F6:F20,I13) -> 2.023325353 | H10: %a.a.
A11: 99 | B11: =BMF!B10 -> 122 | C11: =BMF!C10 -> 4.155 | D11: 98048.4145 | L11: Qtde | M11: =G19/N7*I13/O7 -> 4.792833119
A12: 122 | B12: =BMF!B11 -> 143 | C12: =BMF!C11 -> 4.15 | D12: 97719.01094 | I12: Prazo
A13: 143 | B13: =BMF!B12 -> 164 | C13: =BMF!C12 -> 4.21 | D13: 97351.95534 | I13: ='NTN-B'!L17 -> 998.5916015
A14: 164 | B14: =BMF!B13 -> 185 | C14: =BMF!C13 -> 4.22 | D14: 97011.14623 | L14: Balanceamento estático
A15: 185 | B15: =BMF!B14 -> 205 | C15: =BMF!C14 -> 4.25 | D15: 96670.78955 | F15: cotação | G15: ='NTN-B'!L14 -> 118.6957132
A16: 205 | B16: =BMF!B15 -> 227 | C16: =BMF!C15 -> 4.32 | D16: 96261.93825 | L16: PU int. | M16: =Cubic_Spline(B6:B31,D6:D31,I13) -> 79735.76769 | N16: Qdte teorica | O16: =G19/M16 -> 4.915281841
A17: 227 | B17: =BMF!B16 -> 288 | C17: =BMF!C16 -> 4.45 | D17: 95145.95933 | F17: Estoque | G17: 100
A18: 288 | B18: =BMF!B17 -> 350 | C18: =BMF!C17 -> 4.61 | D18: 93932.30878 | N18: =VLOOKUP(I13,A6:C31,1) -> 978
A19: 350 | B19: =BMF!B18 -> 415 | C19: =BMF!C18 -> 4.77 | D19: 92613.28455 | F19: Fin | G19: =G15*G17*'NTN-B'!E8/100 -> 391923.771 | L19: DI curto | M19: =VLOOKUP(N18,B6:D31,3) -> 80259.12748
A20: 415 | B20: =BMF!B19 -> 478 | C20: =BMF!C19 -> 4.92 | D20: 91292.58008 | O20: =VLOOKUP(I13,A6:C31,2) -> 1037
A21: 478 | B21: =BMF!B20 -> 540 | C21: =BMF!C20 -> 5.07 | D21: 89944.40334 | L21: DI longo | M21: =VLOOKUP(O20,B6:D29,3) -> 78744.17738
A22: 540 | B22: =BMF!B21 -> 602 | C22: =BMF!C21 -> 5.2 | D22: 88594.51679 | N22: =N26-N18 -> 20.59160153 | O22: =O20-N26 -> 38.40839847
A23: 602 | B23: =BMF!B22 -> 667 | C23: =BMF!C22 -> 5.32 | D23: 87180.16956
A24: 667 | B24: =BMF!B23 -> 729 | C24: =BMF!C23 -> 5.44 | D24: 85792.37137
A25: 729 | B25: =BMF!B24 -> 792 | C25: =BMF!C24 -> 5.53 | D25: 84436.9944
A26: 792 | B26: =BMF!B25 -> 853 | C26: =BMF!C25 -> 5.66 | D26: 82997.40142 | L26: Ativo | N26: =I13 -> 998.5916015
A27: 853 | B27: =BMF!B26 -> 917 | C27: =BMF!C26 -> 5.74 | D27: 81619.86244
A28: 917 | B28: =BMF!B27 -> 978 | C28: =BMF!C27 -> 5.83 | D28: 80259.12748 | M28: Qtde curta = Qtde teorica * ( du longo / dif du) * (PU curto / PU longo) ^ ( du curto / dif du )
A29: 978 | B29: =BMF!B28 -> 1037 | C29: =BMF!C28 -> 5.979 | D29: 78744.17738 | M29: Qtde longa = Qtde teorica * ( du curto / dif du) * (PU longo / PU curto) ^ ( du longo / dif du )
A30: =B29 -> 1037 | B30: =BMF!B29 -> 1100 | C30: =BMF!C29 -> 6.067 | D30: =100000/(1+C30/100)^(B30/252) -> 77328.57798
A31: =B30 -> 1100 | B31: =BMF!B30 -> 1166 | C31: =BMF!C30 -> 6.119 | D31: =100000/(1+C31/100)^(B31/252) -> 75972.34117 | L31: Qtde curta | M31: =O16*(O22/(N22+O22))*(M19/M21)^(N22/(N22+O22)) -> 3.221150487
L32: Qdte longa | M32: =O16-M31 -> 1.694131354

Sheet Ex+NTN-B_2
A1: 1 | B1: VNA | C1: ='NTN-B'!E8 -> 3301.920182 | D1: VNA2 | E1: =C1*A1 -> 3301.920182
B2: Carteira Ativa A | G2: Carteira Passiva B
A3: DU | B3: Taxa | C3: QTDE | D3: VF | E3: VPL | F3: fin | G3: VF | H3: VPL | I3: Qtde | J3: fin | K3: Taxa | L3: DU | N3: Ajuste DI
C4: 100 | E4: =SUM(E5:E16) -> 3867.530241 | F4: =SUM(F5:F16) -> 386753.0241 | J4: =SUM(J5:J16) -> 387863.3309 | N4: 1.002870842
A5: ='NTN-B'!J4 -> 8 | B5: 2.57 | C5: =C4 -> 100 | D5: 2.956301 | E5: =D5/((1+$B5/100)^($A5/252))*$C$1/100 -> 97.536096 | F5: =E5*C5 -> 9753.6096 | G5: =100000 -> 100000 | H5: =G5/((1+K5/100)^(L5/252)) -> 99739.12219 | I5: =F5/H5*$N$4 -> 0.09807195468 | J5: =I5*H5 -> 9781.610672 | K5: =VLOOKUP(L5,BALANCEAMENTO!$B$6:$C$31,2) -> 4.2 | L5: =VLOOKUP(A28,BALANCEAMENTO!$A$6:$C$31,2) -> 16
A6: ='NTN-B'!J5 -> 132 | B6: =B5 -> 2.57 | C6: =C5 -> 100 | D6: 2.956301 | E6: =D6/((1+$B6/100)^($A6/252))*$C$1/100 -> 96.32580649 | F6: =E6*C6 -> 9632.580649 | G6: =100000 -> 100000 | H6: 97719.01094 | I6: =F6/H6*$N$4 -> 0.09885726608 | J6: =I6*H6 -> 9660.234265 | K6: =VLOOKUP(L6,BALANCEAMENTO!$B$6:$C$31,2) -> 4.15 | L6: =VLOOKUP(A29,BALANCEAMENTO!$A$6:$C$31,2) -> 143
A7: ='NTN-B'!J6 -> 257 | B7: =B6 -> 2.57 | C7: 100 | D7: 2.956301 | E7: 95.12095626 | F7: 9512.095626 | G7: 100000 | H7: 95145.95933 | I7: 0.1002607301 | J7: 9539.403349 | K7: =VLOOKUP(L7,BALANCEAMENTO!$B$6:$C$31,2) -> 4.45 | L7: =VLOOKUP(A30,BALANCEAMENTO!$A$6:$C$31,2) -> 288
A8: ='NTN-B'!J7 -> 382 | B8: 2.57 | C8: 100 | D8: 2.956301 | E8: 93.93117639 | F8: 9393.117639 | G8: 100000 | H8: 92613.28455 | I8: 0.1017141746 | J8: 9420.083795 | K8: =VLOOKUP(L8,BALANCEAMENTO!$B$6:$C$31,2) -> 4.77 | L8: =VLOOKUP(A31,BALANCEAMENTO!$A$6:$C$31,2) -> 415
A9: ='NTN-B'!J8 -> 509 | B9: 2.57 | C9: 100 | D9: 2.956301 | E9: 92.73759994 | F9: 9273.759994 | G9: 100000 | H9: 89944.40334 | I9: 0.1034014697 | J9: 9300.383493 | K9: =VLOOKUP(L9,BALANCEAMENTO!$B$6:$C$31,2) -> 5.07 | L9: =VLOOKUP(A32,BALANCEAMENTO!$A$6:$C$31,2) -> 540
A10: ='NTN-B'!J9 -> 633 | B10: 2.57 | C10: 100 | D10: 2.956301 | E10: 91.5868532 | F10: 9158.68532 | G10: 100000 | H10: 87180.16956 | I10: 0.1053562812 | J10: 9184.978458 | K10: =VLOOKUP(L10,BALANCEAMENTO!$B$6:$C$31,2) -> 5.32 | L10: =VLOOKUP(A33,BALANCEAMENTO!$A$6:$C$31,2) -> 667
A11: ='NTN-B'!J10 -> 761 | B11: 2.57 | C11: 100 | D11: 2.956301 | E11: 90.41396114 | F11: 9041.396114 | G11: 100000 | H11: 84436.9944 | I11: 0.1073860172 | J11: 9067.352533 | K11: =VLOOKUP(L11,BALANCEAMENTO!$B$6:$C$31,2) -> 5.53 | L11: =VLOOKUP(A34,BALANCEAMENTO!$A$6:$C$31,2) -> 792
A12: ='NTN-B'!J11 -> 884 | B12: 2.57 | C12: 100 | D12: 2.956301 | E12: 89.30103935 | F12: 8930.103935 | G12: 100000 | H12: 81619.86244 | I12: 0.1097250177 | J12: 8955.740852 | K12: =VLOOKUP(L12,BALANCEAMENTO!$B$6:$C$31,2) -> 5.74 | L12: =VLOOKUP(A35,BALANCEAMENTO!$A$6:$C$31,2) -> 917
A13: ='NTN-B'!J12 -> 1008 | B13: 2.57 | C13: 100 | D13: 2.956301 | E13: 88.19293562 | F13: 8819.293562 | G13: 100000 | H13: 78744.17738 | I13: 0.1123208427 | J13: 8844.61236 | K13: =VLOOKUP(L13,BALANCEAMENTO!$B$6:$C$31,2) -> 5.979 | L13: =VLOOKUP(A36,BALANCEAMENTO!$A$6:$C$31,2) -> 1037
A14: ='NTN-B'!J13 -> 1135 | B14: =B13 -> 2.57 | C14: =C13 -> 100 | D14: 102.956301 | E14: 3032.383817 | F14: =E14*C14 -> 303238.3817 | G14: 100000 | H14: =G14/((1+K14/100)^(L14/252)) -> 75972.34117 | I14: 4.002890084 | J14: 304108.9311 | K14: =VLOOKUP(L14,BALANCEAMENTO!$B$6:$C$31,2) -> 6.119 | L14: =VLOOKUP(A37,BALANCEAMENTO!$A$6:$C$31,2) -> 1166
A17: Duration | C17: =SUMPRODUCT(A5:A16,F5:F16)/F4 -> 997.3812797 | D17: =C17/252 -> 3.957862221 | E17: tx média | G17: Duration | H17: =SUMPRODUCT($L$5:$L$16,J5:J16)/J4 -> 1027.423302 | I17: =H17/252 -> 4.077076596 | J17: tx média
A18: Modify Duration | D18: =D17/(1+E18/100) -> 3.858693791 | E18: =_xll.SRS1Splines.Functions25.Cubic_Spline(A5:A14,B5:B14,C17) -> 2.57 | G18: Modify Duration | I18: =I17/(1+J18/100) -> 3.847647802 | J18: =_xll.SRS1Splines.Functions25.Cubic_Spline(L5:L14,K5:K14,H17) -> 5.962832506
A20: Valor de B para imunizar A | D20: Ft. Ajuste: | E20: =D18/I18 -> 1.002870842 | G20: =F4*(D18/I18) -> 387863.3309
A22: Deslocamento paralelo = Variações iguais para todos os vértices
A24: 0 | B24: Incremento | C24: 0.01
B25: Carteira Ativa A | G25: Carteira Passiva B
A26: DU | B26: Taxa | C26: QTDE | D26: VF | E26: VPL | G26: VF | H26: VPL | I26: Qtde | K26: Taxa
F27: =SUM(F28:F39) -> 386603.8267 | J27: =SUM(J28:J39) -> 387714.2399
A28: =A5-$A$24 -> 8 | B28: =B5+$C$24 -> 2.58 | C28: =C5 -> 100 | D28: 2.956301 | E28: =D28/((1+$B28/100)^($A28/252))*$C$1/100 -> 97.53579414 | F28: =E28*C28 -> 9753.579414 | G28: =G5 -> 100000 | H28: =G28/((1+K28/100)^(L28/252)) -> 99738.51448 | I28: =I5 -> 0.09807195468 | J28: =I28*H28 -> 9781.551073 | K28: =K5+$C$24 -> 4.21 | L28: =L5 -> 16
A29: =A6-$A$24 -> 132 | B29: =B6+$C$24 -> 2.58 | C29: =C6 -> 100 | D29: 2.956301 | E29: =D29/((1+$B29/100)^($A29/252))*$C$1/100 -> 96.32088764 | F29: =E29*C29 -> 9632.088764 | G29: =G6 -> 100000 | H29: 97713.68713 | I29: =I6 -> 0.09885726608 | J29: =I29*H29 -> 9659.707968 | K29: 4.16 | L29: =L6 -> 143
A30: 257 | B30: =B7+$C$24 -> 2.58 | C30: =C7 -> 100 | D30: 2.956301 | E30: 95.11149943 | F30: 9511.149943 | G30: =G7 -> 100000 | H30: 95135.54985 | I30: 0.1002607301 | J30: 9538.359687 | K30: 4.46 | L30: 288
A31: 382 | B31: 2.58 | C31: =C8 -> 100 | D31: 2.956301 | E31: 93.91729609 | F31: 9391.729609 | G31: =G8 -> 100000 | H31: 92598.72898 | I31: 0.1017141746 | J31: 9418.603288 | K31: 4.78 | L31: 415
A32: 509 | B32: 2.58 | C32: =C9 -> 100 | D32: 2.956301 | E32: 92.71934045 | F32: 9271.934045 | G32: =G9 -> 100000 | H32: 89926.06231 | I32: 0.1034014697 | J32: 9298.487004 | K32: 5.08 | L32: 540
A33: 633 | B33: 2.58 | C33: =C10 -> 100 | D33: 2.956301 | E33: 91.56442773 | F33: 9156.442773 | G33: =G10 -> 100000 | H33: 87158.26387 | I33: 0.1053562812 | J33: 9182.670556 | K33: 5.33 | L33: 667
A34: 761 | B34: 2.58 | C34: =C11 -> 100 | D34: 2.956301 | E34: 90.3873469 | F34: 9038.73469 | G34: 100000 | H34: 84411.8526 | I34: 0.1073860172 | J34: 9064.652656 | K34: 5.54 | L34: 792
A35: 884 | B35: 2.58 | C35: =C12 -> 100 | D35: 2.956301 | E35: 89.27050474 | F35: 8927.050474 | G35: 100000 | H35: 81591.7803 | I35: 0.1097250177 | J35: 8952.65954 | K35: 5.75 | L35: 917
A36: 1008 | B36: 2.58 | C36: =C13 -> 100 | D36: 2.956301 | E36: 88.15855074 | F36: 8815.855074 | G36: 100000 | H36: 78713.60902 | I36: 0.1123208427 | J36: 8841.178897 | K36: 5.989 | L36: 1037
A37: 1135 | B37: 2.58 | C37: =C14 -> 100 | D37: 102.956301 | E37: 3031.052619 | F37: 303105.2619 | G37: 100000 | H37: =G37/((1+K37/100)^(L37/252)) -> 75939.22461 | I37: 4.002890084 | J37: 303976.3692 | K37: 6.129 | L37: 1166
A40: Duration | C40: =SUMPRODUCT(A28:A39,F28:F39)/F27/252 -> 3.957721987 | D40: tx média | G40: Duration | H40: =SUMPRODUCT($A$5:$A$16,J28:J39)/J27 -> 997.3469076 | I40: =H40/252 -> 3.957725824 | J40: tx média
A41: Modify Duration | C41: =C40/(1+D41/100) -> 3.858180919 | D41: =_xll.SRS1Splines.Functions25.Cubic_Spline(A28:A37,B28:B37,C40) -> 2.58 | G41: Modify Duration | I41: =I40/(1+J41/100) -> 3.736660251 | J41: =_xll.SRS1Splines.Functions25.Cubic_Spline(L28:L37,K28:K37,H40) -> 5.916127176
A43: Variação ocorrida em A | E43: =F27-F4 -> -149.197446 | H43: Imunização
A44: Variação ocorrida em B | E44: =J27-J4 -> -149.0910659 | H44: =E43-E44 -> -0.1063800585
A47: Deslocamentos diferentes nos vértices:
A49: Carteira Ativa A | G49: Carteira Passiva B | M49: INCREMENTO
A50: DU | B50: Taxa | C50: QTDE | D50: VF | E50: VPL | G50: VF | H50: VPL | I50: Qtde | K50: Taxa
F51: =SUM(F52:F63) -> 386603.8267 | J51: =SUM(J52:J63) -> 387714.2399
A52: =A28 -> 8 | B52: =B5+$M$52 -> 2.58 | C52: =C28 -> 100 | D52: =D28 -> 2.956301 | E52: =D52/((1+$B52/100)^($A52/252))*$C$1/100 -> 97.53579414 | F52: =E52*C52 -> 9753.579414 | G52: =G28 -> 100000 | H52: =G52/((1+K52/100)^(L52/252)) -> 99738.51448 | I52: =I28 -> 0.09807195468 | J52: =I52*H52 -> 9781.551073 | K52: =K5+M52 -> 4.21 | L52: =L28 -> 16 | M52: 0.01
A53: =A29 -> 132 | B53: 2.58 | C53: =C29 -> 100 | D53: 2.956301 | E53: 96.32088764 | F53: =E53*C53 -> 9632.088764 | G53: =G29 -> 100000 | H53: 97713.68713 | I53: =I29 -> 0.09885726608 | J53: =I53*H53 -> 9659.707968 | K53: 4.16 | L53: =L29 -> 143 | M53: 0.01
A54: 257 | B54: 2.58 | C54: 100 | D54: 2.956301 | E54: 95.11149943 | F54: 9511.149943 | G54: 100000 | H54: 95135.54985 | I54: 0.1002607301 | J54: 9538.359687 | K54: 4.46 | L54: 288 | M54: 0.01
A55: 382 | B55: 2.58 | C55: 100 | D55: 2.956301 | E55: 93.91729609 | F55: 9391.729609 | G55: 100000 | H55: 92598.72898 | I55: 0.1017141746 | J55: 9418.603288 | K55: 4.78 | L55: 415 | M55: 0.01
A56: 509 | B56: 2.58 | C56: 100 | D56: 2.956301 | E56: 92.71934045 | F56: 9271.934045 | G56: 100000 | H56: 89926.06231 | I56: 0.1034014697 | J56: 9298.487004 | K56: 5.08 | L56: 540 | M56: 0.01
A57: 633 | B57: 2.58 | C57: 100 | D57: 2.956301 | E57: 91.56442773 | F57: 9156.442773 | G57: 100000 | H57: 87158.26387 | I57: 0.1053562812 | J57: 9182.670556 | K57: 5.33 | L57: 667 | M57: 0.01
A58: 761 | B58: 2.58 | C58: 100 | D58: 2.956301 | E58: 90.3873469 | F58: 9038.73469 | G58: 100000 | H58: 84411.8526 | I58: 0.1073860172 | J58: 9064.652656 | K58: 5.54 | L58: 792 | M58: 0.01
A59: 884 | B59: 2.58 | C59: 100 | D59: 2.956301 | E59: 89.27050474 | F59: 8927.050474 | G59: 100000 | H59: 81591.7803 | I59: 0.1097250177 | J59: 8952.65954 | K59: 5.75 | L59: 917 | M59: 0.01
A60: 1008 | B60: 2.58 | C60: 100 | D60: 2.956301 | E60: 88.15855074 | F60: 8815.855074 | G60: 100000 | H60: 78713.60902 | I60: 0.1123208427 | J60: 8841.178897 | K60: 5.989 | L60: 1037 | M60: 0.01
A61: 1135 | B61: 2.58 | C61: 100 | D61: 102.956301 | E61: 3031.052619 | F61: =E61*C61 -> 303105.2619 | G61: 100000 | H61: =G61/((1+K61/100)^(L61/252)) -> 75939.22461 | I61: 4.002890084 | J61: =I61*H61 -> 303976.3692 | K61: 6.129 | L61: 1166 | M61: 0.01
A64: Duration | C64: =SUMPRODUCT(A52:A63,F52:F63)/F51/252 -> 3.957721987 | D64: tx média | G64: Duration | H64: =SUMPRODUCT($A$5:$A$16,J52:J63)/J51 -> 997.3469076 | I64: =H64/252 -> 3.957725824 | J64: tx média
A65: Modify Duration | C65: =C64/(1+D65/100) -> 3.858180919 | D65: =_xll.SRS1Splines.Functions25.Cubic_Spline(A52:A61,B52:B61,C64) -> 2.58 | G65: Modify Duration | I65: =I64/(1+J65/100) -> 3.736660251 | J65: =_xll.SRS1Splines.Functions25.Cubic_Spline(L52:L61,K52:K61,H64) -> 5.916127176
A67: Variação ocorrida em A | E67: =F51-F4 -> -149.197446 | H67: Imunização
A68: Variação ocorrida em B | E68: =J51-J4 -> -149.0910659 | H68: =E67-E68 -> -0.1063800585

Sheet BMF
A1: TAXA DE JUROS | L1: 2020-02-05
A2: BMF Bovespa - Taxa de Juros
A3: DI1 - Depósito Interfinanceiro de um dia
A4: Dvc | B4: DU | C4: Ultima | D4: Var | E4: Neg | F4: Cng | G4: Cab | H4: Mín | I4: Máx | J4: Abe | K4: Ajut | L4: Ajat
A5: 2020-03-02 | B5: 16 | C5: 4.2 | D5: -0.23753 | E5: 72 | F5: 627035 | G5: 1595378 | H5: 4.185 | I5: 4.203 | J5: 4.185 | K5: 4.197 | L5: 4.198
A6: 2020-04-01 | B6: 38 | C6: 4.18 | D6: -0.11947 | E6: 1627 | F6: 634495 | G6: 5521510 | H6: 4.166 | I6: 4.185 | J6: 4.173 | K6: 4.17 | L6: 4.174
A7: 2020-05-04 | B7: 58 | C7: 4.15 | D7: -0.24039 | E7: 37 | F7: 26295 | G7: 218825 | H7: 4.147 | I7: 4.15 | J7: 4.15 | K7: 4.15 | L7: 4.151
A8: 2020-06-01 | B8: 78 | C8: 4.16 | D8: -0.12005 | E8: 3 | F8: 270 | G8: 125280 | H8: 4.16 | I8: 4.18 | J8: 4.16 | K8: 4.143 | L8: 4.147
A9: 2020-07-01 | B9: 99 | C9: 4.155 | D9: 0 | E9: 1413 | F9: 364175 | G9: 5266707 | H9: 4.13 | I9: 4.16 | J9: 4.145 | K9: 4.14 | L9: 4.142
A10: 2020-08-03 | B10: 122 | C10: 4.155 | D10: 0.24126 | E10: 1 | F10: 200 | G10: 72720 | H10: 4.155 | I10: 4.155 | J10: 4.155 | K10: 4.143 | L10: 4.148
A11: 2020-09-01 | B11: 143 | C11: 4.15 | D11: 0.12063 | E11: 6 | F11: 550 | G11: 37370 | H11: 4.15 | I11: 4.15 | J11: 4.15 | K11: 4.145 | L11: 4.143
A12: 2020-10-01 | B12: 164 | C12: 4.21 | D12: 0.11891 | E12: 458 | F12: 66570 | G12: 695068 | H12: 4.185 | I12: 4.21 | J12: 4.195 | K12: 4.185 | L12: 4.194
A13: 2020-11-03 | B13: 185 | C13: 4.22 | D13: -0.23641 | E13: 6 | F13: 685 | G13: 37945 | H13: 4.21 | I13: 4.22 | J13: 4.21 | K13: 4.21 | L13: 4.219
A14: 2020-12-01 | B14: 205 | C14: 4.25 | D14: 0.3305 | E14: 35 | F14: 5075 | G14: 37095 | H14: 4.24 | I14: 4.25 | J14: 4.24 | K14: 4.228 | L14: 4.235
A15: 2021-01-04 | B15: 227 | C15: 4.32 | D15: 0.34843 | E15: 2752 | F15: 430415 | G15: 4303082 | H15: 4.275 | I15: 4.325 | J15: 4.285 | K15: 4.29 | L15: 4.295
A16: 2021-04-01 | B16: 288 | C16: 4.45 | D16: 0.45147 | E16: 165 | F16: 12590 | G16: 549347 | H16: 4.4 | I16: 4.45 | J16: 4.41 | K16: 4.42 | L16: 4.42
A17: 2021-07-01 | B17: 350 | C17: 4.61 | D17: 0.21739 | E17: 943 | F17: 36205 | G17: 902722 | H17: 4.55 | I17: 4.61 | J17: 4.58 | K17: 4.57 | L17: 4.581
A18: 2021-10-01 | B18: 415 | C18: 4.77 | D18: -0.41754 | E18: 62 | F18: 2145 | G18: 449222 | H18: 4.73 | I18: 4.77 | J18: 4.74 | K18: 4.73 | L18: 4.751
A19: 2022-01-03 | B19: 478 | C19: 4.92 | D19: 0 | E19: 3269 | F19: 272275 | G19: 1392762 | H19: 4.87 | I19: 4.92 | J19: 4.9 | K19: 4.89 | L19: 4.911
A20: 2022-04-01 | B20: 540 | C20: 5.07 | D20: 0 | E20: 99 | F20: 5650 | G20: 146310 | H20: 5.04 | I20: 5.07 | J20: 5.04 | K20: 5.05 | L20: 5.071
A21: 2022-07-01 | B21: 602 | C21: 5.2 | D21: -0.19194 | E21: 630 | F21: 22565 | G21: 405582 | H21: 5.16 | I21: 5.21 | J21: 5.2 | K21: 5.18 | L21: 5.201
A22: 2022-10-03 | B22: 667 | C22: 5.32 | D22: -0.56075 | E22: 3 | F22: 130 | G22: 49715 | H22: 5.3 | I22: 5.32 | J22: 5.3 | K22: 5.325 | L22: 5.351
A23: 2023-01-02 | B23: 729 | C23: 5.44 | D23: -0.18349 | E23: 10663 | F23: 318205 | G23: 1683036 | H23: 5.4 | I23: 5.46 | J23: 5.45 | K23: 5.42 | L23: 5.451
A24: 2023-04-03 | B24: 792 | C24: 5.53 | D24: -0.71813 | E24: 18 | F24: 315 | G24: 21250 | H24: 5.51 | I24: 5.55 | J24: 5.53 | K24: 5.525 | L24: 5.571
A25: 2023-07-03 | B25: 853 | C25: 5.66 | D25: -0.35211 | E25: 499 | F25: 25755 | G25: 790821 | H25: 5.62 | I25: 5.69 | J25: 5.68 | K25: 5.64 | L25: 5.682
A26: 2023-10-02 | B26: 917 | C26: 5.74 | D26: -0.69204 | E26: 13 | F26: 95 | G26: 17645 | H26: 5.72 | I26: 5.75 | J26: 5.75 | K26: 5.74 | L26: 5.782
A27: 2024-01-02 | B27: 978 | C27: 5.83 | D27: -0.51195 | E27: 1112 | F27: 46785 | G27: 406407 | H27: 5.8 | I27: 5.86 | J27: 5.85 | K27: 5.82 | L27: 5.862
A28: 2024-04-01 | B28: 1037 | C28: 5.979 | D28: -0.046 | E28: 145 | F28: 45896 | G28: 45895 | H28: 5.85 | I28: 6.03 | J28: 5.9 | K28: 5.93 | L28: 9.958
A29: 2024-07-01 | B29: 1100 | C29: 6.067 | D29: 0.02 | E29: 8600 | F29: 45893 | G29: 48650 | H29: 5.98 | I29: 6.08 | J29: 5.98 | K29: 6.02 | L29: 6.03
A30: 2024-10-01 | B30: 1166 | C30: 6.119 | D30: 0.05 | E30: 250 | F30: 25860 | G30: 32580 | H30: 6 | I30: 6.23 | J30: 6.058 | K30: 6.09 | L30: 6.095

Sheet ANBIMA
A1: Títulos Públicos Federais | K1: 05/Fev/2020
A3: Papel IPCA | C3: NTN-B - Taxa (% a.a.)/252
A4: Código SELIC | B4: Data Base/Emissão | C4: Data de Vencimento | D4: Tx. Compra | E4: Tx. Venda | F4: Tx. Indicativas | G4: PU | H4: Intervalo Indicativo
H5: Mínimo (D0) | I5: Máximo (D0) | J5: Mínimo (D+1) | K5: Máximo (D+1)
A6: 760199 | B6: 2000-07-15 | C6: 2020-08-15 | D6: 1.3594 | E6: 1.3373 | F6: 1.3478 | G6: 3473.349661 | H6: 1.1098 | I6: 1.933 | J6: 1.0268 | K6: 1.8566 | L6: =NETWORKDAYS($K$1,C6,Feriado)-1 -> 131
A7: 760199 | B7: 2000-07-15 | C7: 2021-05-15 | D7: 1.0722 | E7: 1.0511 | F7: 1.06 | G7: 3548.765526 | H7: 0.8537 | I7: 1.2316 | J7: 0.8685 | K7: 1.2465 | L7: 317
A8: 760199 | B8: 2000-07-15 | C8: 2022-08-15 | D8: 1.6981 | E8: 1.675 | F8: 1.6845 | G8: 3739.682572 | H8: 1.4334 | I8: 1.899 | J8: 1.4306 | K8: 1.8963 | L8: 633
A9: 760100 | B9: 2000-07-15 | C9: 2023-03-15 | D9: 1.88 | E9: 1.8633 | F9: 1.8718 | G9: 3781.428754 | H9: 1.6384 | I9: 2.1045 | J9: 1.6269 | K9: 2.093 | L9: 779
A10: 760199 | B10: 2000-07-15 | C10: 2023-05-15 | D10: 1.8817 | E10: 1.8608 | F10: 1.8717 | G10: 3770.255055 | H10: 1.6423 | I10: 2.1114 | J10: 1.6303 | K10: 2.0994 | L10: 819
A11: 760199 | B11: 2000-07-15 | C11: 2024-08-15 | D11: 2.2371 | E11: 2.2147 | F11: 2.2266 | G11: 3919.23771 | H11: 2.0104 | I11: 2.4915 | J11: 1.977 | K11: 2.4582 | L11: 1135 | M11: =G11/'NTN-B'!L14*100 -> 3301.920182
A12: 760199 | B12: 2000-07-15 | C12: 2025-05-15 | D12: 2.4452 | E12: 2.425 | F12: 2.437 | G12: 3915.589088 | H12: 2.2339 | I12: 2.697 | J12: 2.1909 | K12: 2.6542 | L12: 1322
A13: 760199 | B13: 2000-07-15 | C13: 2026-08-15 | D13: 2.5765 | E13: 2.5547 | F13: 2.5664 | G13: 4059.668391 | H13: 2.3788 | I13: 2.8046 | J13: 2.3319 | K13: 2.7578 | L13: 1639
A14: 760199 | B14: 2000-07-15 | C14: 2028-08-15 | D14: 2.7721 | E14: 2.7523 | F14: 2.76 | G14: 4188.539048 | H14: 2.5894 | I14: 2.968 | J14: 2.5466 | K14: 2.9253 | L14: 2141
A15: 760199 | B15: 2000-07-15 | C15: 2030-08-15 | D15: 2.9816 | E15: 2.9567 | F15: 2.97 | G15: 4278.912613 | H15: 2.8238 | I15: 3.1845 | J15: 2.7745 | K15: 3.1353 | L15: 2641
A16: 760199 | B16: 2000-07-15 | C16: 2035-05-15 | D16: 3.1985 | E16: 3.1745 | F16: 3.1844 | G16: 4446.488383 | H16: 3.0459 | I16: 3.393 | J16: 2.9984 | K16: 3.3456 | L16: 3834
A17: 760199 | B17: 2000-07-15 | C17: 2040-08-15 | D17: 3.4203 | E17: 3.3923 | F17: 3.4042 | G17: 4634.377568 | H17: 3.2627 | I17: 3.5912 | J17: 3.2173 | K17: 3.5459 | L17: 5156
A18: 760199 | B18: 2000-07-15 | C18: 2045-05-15 | D18: 3.508 | E18: 3.4772 | F18: 3.49 | G18: 4711.434488 | H18: 3.343 | I18: 3.6609 | J18: 3.3029 | K18: 3.6209 | L18: 6347
A19: 760199 | B19: 2000-07-15 | C19: 2050-08-15 | D19: 3.5051 | E19: 3.4801 | F19: 3.49 | G19: 4923.150332 | H19: 3.3438 | I19: 3.6535 | J19: 3.303 | K19: 3.6126 | L19: 7666
A20: 760199 | B20: 2000-07-15 | C20: 2055-05-15 | D20: 3.5142 | E20: 3.4762 | F20: 3.49 | G20: 4999.315733 | H20: 3.3441 | I20: 3.6481 | J20: 3.3031 | K20: 3.6071 | L20: 8858
A25: Títulos Públicos Federais | K25: 05/Fev/2020
A27: Papel PREFIXADO | C27: LTN - Taxa (% a.a.)/252
A28: Código SELIC | B28: Data Base/Emissão | C28: Data de Vencimento | D28: Tx. Compra | E28: Tx. Venda | F28: Tx. Indicativas | G28: PU | H28: Intervalo Indicativo
H29: Mínimo (D0) | I29: Máximo (D0) | J29: Mínimo (D+1) | K29: Máximo (D+1)
A30: 100000 | B30: 2018-01-05 | C30: 2020-04-01 | D30: 4.1806 | E30: 4.1685 | F30: 4.175 | G30: 993.85122 | H30: 4.0909 | I30: 4.282 | J30: 4.0772 | K30: 4.2683
A31: 100000 | B31: 2016-07-08 | C31: 2020-07-01 | D31: 4.1545 | E31: 4.1432 | F31: 4.1494 | G31: 984.15479 | H31: 4.0393 | I31: 4.2863 | J31: 4.0308 | K31: 4.2759
A32: 100000 | B32: 2018-07-06 | C32: 2020-10-01 | D32: 4.1975 | E32: 4.1875 | F32: 4.1931 | G32: 973.622313 | H32: 4.0285 | I32: 4.4168 | J32: 4.0176 | K32: 4.4039
A33: 100000 | B33: 2019-01-04 | C33: 2021-04-01 | D33: 4.4367 | E33: 4.4246 | F33: 4.4319 | G33: 951.648059 | H33: 4.1742 | I33: 4.7319 | J33: 4.174 | K33: 4.7307
A34: 100000 | B34: 2017-07-07 | C34: 2021-07-01 | D34: 4.5881 | E34: 4.5771 | F34: 4.5833 | G34: 939.656171 | H34: 4.3058 | I34: 4.9173 | J34: 4.2947 | K34: 4.9054
A35: 100000 | B35: 2019-07-05 | C35: 2021-10-01 | D35: 4.7565 | E35: 4.7456 | F35: 4.75 | G35: 926.424067 | H35: 4.4565 | I35: 5.1084 | J35: 4.4369 | K35: 5.0882
A36: 100000 | B36: 2018-01-05 | C36: 2022-01-01 | D36: 4.9145 | E36: 4.9042 | F36: 4.9088 | G36: 913.11068 | H36: 4.5988 | I36: 5.2784 | J36: 4.5778 | K36: 5.2571
A37: 100000 | B37: 2020-01-03 | C37: 2022-04-01 | D37: 5.0764 | E37: 5.0672 | F37: 5.0709 | G37: 899.427524 | H37: 4.7458 | I37: 5.4448 | J37: 4.7269 | K37: 5.4257
A38: 100000 | B38: 2018-06-21 | C38: 2022-07-01 | D38: 5.2112 | E38: 5.1994 | F38: 5.205 | G38: 885.844585 | H38: 4.8723 | I38: 5.5802 | J38: 4.8516 | K38: 5.5594
A39: 100000 | B39: 2019-04-05 | C39: 2023-07-01 | D39: 5.6797 | E39: 5.6687 | F39: 5.6738 | G39: 829.60719 | H39: 5.3459 | I39: 6.0473 | J39: 5.3054 | K39: 6.007
A40: 100000 | B40: 2020-01-03 | C40: 2024-01-01 | D40: 5.864 | E40: 5.8541 | F40: 5.8591 | G40: 801.735369 | H40: 5.5314 | I40: 6.2449 | J40: 5.4914 | K40: 6.2048

Sheet FERIADOS
A1: 2009-01-01 | B1: 2009-02-23 | C1: 2009-02-24 | D1: 2009-04-10 | E1: 2009-04-21 | F1: 2009-05-01 | G1: 2009-06-11 | H1: 2009-09-07 | I1: 2009-10-12 | J1: 2009-11-02 | K1: 2009-11-15 | L1: 2009-12-25
A2: 2010-01-01 | B2: 2010-02-15 | C2: 2010-02-16 | D2: 2010-04-02 | E2: 2010-04-21 | F2: 2010-05-01 | G2: 2010-06-03 | H2: 2010-09-07 | I2: 2010-10-12 | J2: 2010-11-02 | K2: 2010-11-15 | L2: 2010-12-25
A3: 2011-01-01 | B3: 2011-03-07 | C3: 2011-03-08 | D3: 2011-04-21 | E3: 2011-04-22 | F3: 2011-05-01 | G3: 2011-06-23 | H3: 2011-09-07 | I3: 2011-10-12 | J3: 2011-11-02 | K3: 2011-11-15 | L3: 2011-12-25
A4: 2012-01-01 | B4: 2012-02-20 | C4: 2012-02-21 | D4: 2012-04-06 | E4: 2012-04-21 | F4: 2012-05-01 | G4: 2012-06-07 | H4: 2012-09-07 | I4: 2012-10-12 | J4: 2012-11-02 | K4: 2012-11-15 | L4: 2012-12-25
A5: 2013-01-01 | B5: 2013-02-11 | C5: 2013-02-12 | D5: 2013-03-29 | E5: 2013-04-21 | F5: 2013-05-01 | G5: 2013-05-30 | H5: 2013-09-07 | I5: 2013-10-12 | J5: 2013-11-02 | K5: 2013-11-15 | L5: 2013-12-25
A6: 2014-01-01 | B6: 2014-03-03 | C6: 2014-03-04 | D6: 2014-04-18 | E6: 2014-04-21 | F6: 2014-05-01 | G6: 2014-06-19 | H6: 2014-09-07 | I6: 2014-10-12 | J6: 2014-11-02 | K6: 2014-11-15 | L6: 2014-12-25
A7: 2015-01-01 | B7: 2015-02-16 | C7: 2015-02-17 | D7: 2015-04-03 | E7: 2015-04-21 | F7: 2015-05-01 | G7: 2015-06-04 | H7: 2015-09-07 | I7: 2015-10-12 | J7: 2015-11-02 | K7: 2015-11-15 | L7: 2015-12-25
A8: 2016-01-01 | B8: 2016-02-08 | C8: 2016-02-09 | D8: 2016-03-25 | E8: 2016-04-21 | F8: 2016-05-01 | G8: 2016-05-26 | H8: 2016-09-07 | I8: 2016-10-12 | J8: 2016-11-02 | K8: 2016-11-15 | L8: 2016-12-25
A9: 2017-01-01 | B9: 2017-02-27 | C9: 2017-02-28 | D9: 2017-04-14 | E9: 2017-04-21 | F9: 2017-05-01 | G9: 2017-06-15 | H9: 2017-09-07 | I9: 2017-10-12 | J9: 2017-11-02 | K9: 2017-11-15 | L9: 2017-12-25
A10: 2018-01-01 | B10: 2018-02-12 | C10: 2018-02-13 | D10: 2018-03-30 | E10: 2018-04-21 | F10: 2018-05-01 | G10: 2018-05-31 | H10: 2018-09-07 | I10: 2018-10-12 | J10: 2018-11-02 | K10: 2018-11-15 | L10: 2018-12-25
A11: 2019-01-01 | B11: 2019-03-04 | C11: 2019-03-05 | D11: 2019-04-19 | E11: 2019-04-21 | F11: 2019-05-01 | G11: 2019-06-20 | H11: 2019-09-07 | I11: 2019-10-12 | J11: 2019-11-02 | K11: 2019-11-15 | L11: 2019-12-25
A12: 2020-01-01 | B12: 2020-02-24 | C12: 2020-02-25 | D12: 2020-04-10 | E12: 2020-04-21 | F12: 2020-05-01 | G12: 2020-06-11 | H12: 2020-09-07 | I12: 2020-10-12 | J12: 2020-11-02 | K12: 2020-11-15 | L12: 2020-12-25
A13: 2021-01-01 | B13: 2021-02-15 | C13: 2021-02-16 | D13: 2021-04-02 | E13: 2021-04-21 | F13: 2021-05-01 | G13: 2021-06-03 | H13: 2021-09-07 | I13: 2021-10-12 | J13: 2021-11-02 | K13: 2021-11-15 | L13: 2021-12-25
A14: 2022-01-01 | B14: 2022-02-28 | C14: 2022-03-01 | D14: 2022-04-15 | E14: 2022-04-21 | F14: 2022-05-01 | G14: 2022-06-16 | H14: 2022-09-07 | I14: 2022-10-12 | J14: 2022-11-02 | K14: 2022-11-15 | L14: 2022-12-25
A15: 2023-01-01 | B15: 2023-02-20 | C15: 2023-02-21 | D15: 2023-04-07 | E15: 2023-04-21 | F15: 2023-05-01 | G15: 2023-06-08 | H15: 2023-09-07 | I15: 2023-10-12 | J15: 2023-11-02 | K15: 2023-11-15 | L15: 2023-12-25
A16: 2024-01-01 | B16: 2024-02-12 | C16: 2024-02-13 | D16: 2024-03-29 | E16: 2024-04-21 | F16: 2024-05-01 | G16: 2024-05-30 | H16: 2024-09-07 | I16: 2024-10-12 | J16: 2024-11-02 | K16: 2024-11-15 | L16: 2024-12-25
A17: 2025-01-01 | B17: 2025-03-03 | C17: 2025-03-04 | D17: 2025-04-18 | E17: 2025-04-21 | F17: 2025-05-01 | G17: 2025-06-19 | H17: 2025-09-07 | I17: 2025-10-12 | J17: 2025-11-02 | K17: 2025-11-15 | L17: 2025-12-25
A18: 2026-01-01 | B18: 2026-02-16 | C18: 2026-02-17 | D18: 2026-04-03 | E18: 2026-04-21 | F18: 2026-05-01 | G18: 2026-06-04 | H18: 2026-09-07 | I18: 2026-10-12 | J18: 2026-11-02 | K18: 2026-11-15 | L18: 2026-12-25
A19: 2027-01-01 | B19: 2027-02-08 | C19: 2027-02-09 | D19: 2027-03-26 | E19: 2027-04-21 | F19: 2027-05-01 | G19: 2027-05-27 | H19: 2027-09-07 | I19: 2027-10-12 | J19: 2027-11-02 | K19: 2027-11-15 | L19: 2027-12-25
A20: 2028-01-01 | B20: 2028-02-28 | C20: 2028-02-29 | D20: 2028-04-14 | E20: 2028-04-21 | F20: 2028-05-01 | G20: 2028-06-15 | H20: 2028-09-07 | I20: 2028-10-12 | J20: 2028-11-02 | K20: 2028-11-15 | L20: 2028-12-25
A21: 2029-01-01 | B21: 2029-02-12 | C21: 2029-02-13 | D21: 2029-03-30 | E21: 2029-04-21 | F21: 2029-05-01 | G21: 2029-05-31 | H21: 2029-09-07 | I21: 2029-10-12 | J21: 2029-11-02 | K21: 2029-11-15 | L21: 2029-12-25
A22: 2030-01-01 | B22: 2030-03-04 | C22: 2030-03-05 | D22: 2030-04-19 | E22: 2030-04-21 | F22: 2030-05-01 | G22: 2030-06-20 | H22: 2030-09-07 | I22: 2030-10-12 | J22: 2030-11-02 | K22: 2030-11-15 | L22: 2030-12-25
A23: 2031-01-01 | B23: 2031-02-24 | C23: 2031-02-25 | D23: 2031-04-11 | E23: 2031-04-21 | F23: 2031-05-01 | G23: 2031-06-12 | H23: 2031-09-07 | I23: 2031-10-12 | J23: 2031-11-02 | K23: 2031-11-15 | L23: 2031-12-25
A24: 2032-01-01 | B24: 2032-02-09 | C24: 2032-02-10 | D24: 2032-03-26 | E24: 2032-04-21 | F24: 2032-05-01 | G24: 2032-05-27 | H24: 2032-09-07 | I24: 2032-10-12 | J24: 2032-11-02 | K24: 2032-11-15 | L24: 2032-12-25
A25: 2033-01-01 | B25: 2033-02-28 | C25: 2033-03-01 | D25: 2033-04-15 | E25: 2033-04-21 | F25: 2033-05-01 | G25: 2033-06-16 | H25: 2033-09-07 | I25: 2033-10-12 | J25: 2033-11-02 | K25: 2033-11-15 | L25: 2033-12-25
A26: 2034-01-01 | B26: 2034-02-20 | C26: 2034-02-21 | D26: 2034-04-07 | E26: 2034-04-21 | F26: 2034-05-01 | G26: 2034-06-08 | H26: 2034-09-07 | I26: 2034-10-12 | J26: 2034-11-02 | K26: 2034-11-15 | L26: 2034-12-25
A27: 2035-01-01 | B27: 2035-02-05 | C27: 2035-02-06 | D27: 2035-03-23 | E27: 2035-04-21 | F27: 2035-05-01 | G27: 2035-05-24 | H27: 2035-09-07 | I27: 2035-10-12 | J27: 2035-11-02 | K27: 2035-11-15 | L27: 2035-12-25
A28: 2036-01-01 | B28: 2036-02-25 | C28: 2036-02-26 | D28: 2036-04-11 | E28: 2036-04-21 | F28: 2036-05-01 | G28: 2036-06-12 | H28: 2036-09-07 | I28: 2036-10-12 | J28: 2036-11-02 | K28: 2036-11-15 | L28: 2036-12-25
A29: 2037-01-01 | B29: 2037-02-16 | C29: 2037-02-17 | D29: 2037-04-03 | E29: 2037-04-21 | F29: 2037-05-01 | G29: 2037-06-04 | H29: 2037-09-07 | I29: 2037-10-12 | J29: 2037-11-02 | K29: 2037-11-15 | L29: 2037-12-25
A30: 2038-01-01 | B30: 2038-03-08 | C30: 2038-03-09 | D30: 2038-04-21 | E30: 2038-04-23 | F30: 2038-05-01 | G30: 2038-06-24 | H30: 2038-09-07 | I30: 2038-10-12 | J30: 2038-11-02 | K30: 2038-11-15 | L30: 2038-12-25
A31: 2039-01-01 | B31: 2039-02-21 | C31: 2039-02-22 | D31: 2039-04-08 | E31: 2039-04-21 | F31: 2039-05-01 | G31: 2039-06-09 | H31: 2039-09-07 | I31: 2039-10-12 | J31: 2039-11-02 | K31: 2039-11-15 | L31: 2039-12-25
A32: 2040-01-01 | B32: 2040-02-13 | C32: 2040-02-14 | D32: 2040-03-30 | E32: 2040-04-21 | F32: 2040-05-01 | G32: 2040-05-31 | H32: 2040-09-07 | I32: 2040-10-12 | J32: 2040-11-02 | K32: 2040-11-15 | L32: 2040-12-25
A33: 2041-01-01 | B33: 2041-03-04 | C33: 2041-03-05 | D33: 2041-04-19 | E33: 2041-04-21 | F33: 2041-05-01 | G33: 2041-06-20 | H33: 2041-09-07 | I33: 2041-10-12 | J33: 2041-11-02 | K33: 2041-11-15 | L33: 2041-12-25
A34: 2042-01-01 | B34: 2042-02-17 | C34: 2042-02-18 | D34: 2042-04-04 | E34: 2042-04-21 | F34: 2042-05-01 | G34: 2042-06-05 | H34: 2042-09-07 | I34: 2042-10-12 | J34: 2042-11-02 | K34: 2042-11-15 | L34: 2042-12-25
A35: 2043-01-01 | B35: 2043-02-09 | C35: 2043-02-10 | D35: 2043-03-27 | E35: 2043-04-21 | F35: 2043-05-01 | G35: 2043-05-28 | H35: 2043-09-07 | I35: 2043-10-12 | J35: 2043-11-02 | K35: 2043-11-15 | L35: 2043-12-25
A36: 2044-01-01 | B36: 2044-02-29 | C36: 2044-03-01 | D36: 2044-04-15 | E36: 2044-04-21 | F36: 2044-05-01 | G36: 2044-06-16 | H36: 2044-09-07 | I36: 2044-10-12 | J36: 2044-11-02 | K36: 2044-11-15 | L36: 2044-12-25
A37: 2045-01-01 | B37: 2045-02-20 | C37: 2045-02-21 | D37: 2045-04-07 | E37: 2045-04-21 | F37: 2045-05-01 | G37: 2045-06-08 | H37: 2045-09-07 | I37: 2045-10-12 | J37: 2045-11-02 | K37: 2045-11-15 | L37: 2045-12-25
A38: 2046-01-01 | B38: 2046-02-05 | C38: 2046-02-06 | D38: 2046-03-23 | E38: 2046-04-21 | F38: 2046-05-01 | G38: 2046-05-24 | H38: 2046-09-07 | I38: 2046-10-12 | J38: 2046-11-02 | K38: 2046-11-15 | L38: 2046-12-25
A39: 2047-01-01 | B39: 2047-02-25 | C39: 2047-02-26 | D39: 2047-04-12 | E39: 2047-04-21 | F39: 2047-05-01 | G39: 2047-06-13 | H39: 2047-09-07 | I39: 2047-10-12 | J39: 2047-11-02 | K39: 2047-11-15 | L39: 2047-12-25
A40: 2048-01-01 | B40: 2048-02-17 | C40: 2048-02-18 | D40: 2048-04-03 | E40: 2048-04-21 | F40: 2048-05-01 | G40: 2048-06-04 | H40: 2048-09-07 | I40: 2048-10-12 | J40: 2048-11-02 | K40: 2048-11-15 | L40: 2048-12-25
A41: 2049-01-01 | B41: 2049-03-01 | C41: 2049-03-02 | D41: 2049-04-16 | E41: 2049-04-21 | F41: 2049-05-01 | G41: 2049-06-17 | H41: 2049-09-07 | I41: 2049-10-12 | J41: 2049-11-02 | K41: 2049-11-15 | L41: 2049-12-25
A42: 2050-01-01 | B42: 2050-02-21 | C42: 2050-02-22 | D42: 2050-04-08 | E42: 2050-04-21 | F42: 2050-05-01 | G42: 2050-06-09 | H42: 2050-09-07 | I42: 2050-10-12 | J42: 2050-11-02 | K42: 2050-11-15 | L42: 2050-12-25
A43: 2051-01-01 | B43: 2051-02-13 | C43: 2051-02-14 | D43: 2051-03-31 | E43: 2051-04-21 | F43: 2051-05-01 | G43: 2051-06-01 | H43: 2051-09-07 | I43: 2051-10-12 | J43: 2051-11-02 | K43: 2051-11-15 | L43: 2051-12-25
A44: 2052-01-01 | B44: 2052-03-04 | C44: 2052-03-05 | D44: 2052-04-19 | E44: 2052-04-21 | F44: 2052-05-01 | G44: 2052-06-20 | H44: 2052-09-07 | I44: 2052-10-12 | J44: 2052-11-02 | K44: 2052-11-15 | L44: 2052-12-25
A45: 2053-01-01 | B45: 2053-02-17 | C45: 2053-02-18 | D45: 2053-04-04 | E45: 2053-04-21 | F45: 2053-05-01 | G45: 2053-06-05 | H45: 2053-09-07 | I45: 2053-10-12 | J45: 2053-11-02 | K45: 2053-11-15 | L45: 2053-12-25
A46: 2054-01-01 | B46: 2054-02-09 | C46: 2054-02-10 | D46: 2054-03-27 | E46: 2054-04-21 | F46: 2054-05-01 | G46: 2054-05-28 | H46: 2054-09-07 | I46: 2054-10-12 | J46: 2054-11-02 | K46: 2054-11-15 | L46: 2054-12-25
A47: 2055-01-01 | B47: 2055-03-01 | C47: 2055-03-02 | D47: 2055-04-16 | E47: 2055-04-21 | F47: 2055-05-01 | G47: 2055-06-17 | H47: 2055-09-07 | I47: 2055-10-12 | J47: 2055-11-02 | K47: 2055-11-15 | L47: 2055-12-25
A48: 2056-01-01 | B48: 2056-02-14 | C48: 2056-02-15 | D48: 2056-03-31 | E48: 2056-04-21 | F48: 2056-05-01 | G48: 2056-06-01 | H48: 2056-09-07 | I48: 2056-10-12 | J48: 2056-11-02 | K48: 2056-11-15 | L48: 2056-12-25
A49: 2057-01-01 | B49: 2057-03-05 | C49: 2057-03-06 | D49: 2057-04-20 | E49: 2057-04-21 | F49: 2057-05-01 | G49: 2057-06-21 | H49: 2057-09-07 | I49: 2057-10-12 | J49: 2057-11-02 | K49: 2057-11-15 | L49: 2057-12-25
A50: 2058-01-01 | B50: 2058-02-25 | C50: 2058-02-26 | D50: 2058-04-12 | E50: 2058-04-21 | F50: 2058-05-01 | G50: 2058-06-13 | H50: 2058-09-07 | I50: 2058-10-12 | J50: 2058-11-02 | K50: 2058-11-15 | L50: 2058-12-25
A51: 2059-01-01 | B51: 2059-02-10 | C51: 2059-02-11 | D51: 2059-03-28 | E51: 2059-04-21 | F51: 2059-05-01 | G51: 2059-05-29 | H51: 2059-09-07 | I51: 2059-10-12 | J51: 2059-11-02 | K51: 2059-11-15 | L51: 2059-12-25
A52: 2060-01-01 | B52: 2060-03-01 | C52: 2060-03-02 | D52: 2060-04-16 | E52: 2060-04-21 | F52: 2060-05-01 | G52: 2060-06-17 | H52: 2060-09-07 | I52: 2060-10-12 | J52: 2060-11-02 | K52: 2060-11-15 | L52: 2060-12-25
A53: 2061-01-01 | B53: 2061-02-21 | C53: 2061-02-22 | D53: 2061-04-08 | E53: 2061-04-21 | F53: 2061-05-01 | G53: 2061-06-09 | H53: 2061-09-07 | I53: 2061-10-12 | J53: 2061-11-02 | K53: 2061-11-15 | L53: 2061-12-25
A54: 2062-01-01 | B54: 2062-02-06 | C54: 2062-02-07 | D54: 2062-03-24 | E54: 2062-04-21 | F54: 2062-05-01 | G54: 2062-05-25 | H54: 2062-09-07 | I54: 2062-10-12 | J54: 2062-11-02 | K54: 2062-11-15 | L54: 2062-12-25
A55: 2063-01-01 | B55: 2063-02-26 | C55: 2063-02-27 | D55: 2063-04-13 | E55: 2063-04-21 | F55: 2063-05-01 | G55: 2063-06-14 | H55: 2063-09-07 | I55: 2063-10-12 | J55: 2063-11-02 | K55: 2063-11-15 | L55: 2063-12-25
A56: 2064-01-01 | B56: 2064-02-18 | C56: 2064-02-19 | D56: 2064-04-04 | E56: 2064-04-21 | F56: 2064-05-01 | G56: 2064-06-05 | H56: 2064-09-07 | I56: 2064-10-12 | J56: 2064-11-02 | K56: 2064-11-15 | L56: 2064-12-25
A57: 2065-01-01 | B57: 2065-02-09 | C57: 2065-02-10 | D57: 2065-03-27 | E57: 2065-04-21 | F57: 2065-05-01 | G57: 2065-05-28 | H57: 2065-09-07 | I57: 2065-10-12 | J57: 2065-11-02 | K57: 2065-11-15 | L57: 2065-12-25
A58: 2066-01-01 | B58: 2066-02-22 | C58: 2066-02-23 | D58: 2066-04-09 | E58: 2066-04-21 | F58: 2066-05-01 | G58: 2066-06-10 | H58: 2066-09-07 | I58: 2066-10-12 | J58: 2066-11-02 | K58: 2066-11-15 | L58: 2066-12-25
A59: 2067-01-01 | B59: 2067-02-14 | C59: 2067-02-15 | D59: 2067-04-01 | E59: 2067-04-21 | F59: 2067-05-01 | G59: 2067-06-02 | H59: 2067-09-07 | I59: 2067-10-12 | J59: 2067-11-02 | K59: 2067-11-15 | L59: 2067-12-25
A60: 2068-01-01 | B60: 2068-03-05 | C60: 2068-03-06 | D60: 2068-04-20 | E60: 2068-04-21 | F60: 2068-05-01 | G60: 2068-06-21 | H60: 2068-09-07 | I60: 2068-10-12 | J60: 2068-11-02 | K60: 2068-11-15 | L60: 2068-12-25
A61: 2069-01-01 | B61: 2069-02-25 | C61: 2069-02-26 | D61: 2069-04-12 | E61: 2069-04-21 | F61: 2069-05-01 | G61: 2069-06-13 | H61: 2069-09-07 | I61: 2069-10-12 | J61: 2069-11-02 | K61: 2069-11-15 | L61: 2069-12-25
A62: 2070-01-01 | B62: 2070-02-10 | C62: 2070-02-11 | D62: 2070-03-28 | E62: 2070-04-21 | F62: 2070-05-01 | G62: 2070-05-29 | H62: 2070-09-07 | I62: 2070-10-12 | J62: 2070-11-02 | K62: 2070-11-15 | L62: 2070-12-25

Sheet DAP
A1: VENCTO | B1: CONTR. ABERT.(1) | C1: CONTR. FECH.(2) | D1: NÚM. NEGOC. | E1: CONTR. NEGOC. | F1: VOL. | G1: AJUSTE ANTER. (3) | H1: AJUSTE CORRIG. (4) | I1: PREÇO ABERT. | J1: PREÇO MÍN. | K1: PREÇO MÁX. | L1: PREÇO MÉD. | M1: ÚLT. PREÇO | N1: AJUSTE | O1: VAR. PTOS. | P1: Ajuste | S1: 2020-02-05 | T1: cupom real | U1: di 1dia | X1: inflação
A2: G20 | B2: 10435 | C2: 10435 | D2: 0 | E2: 0 | F2: 0 | G2: 99997.84 | H2: 99997.84 | I2: 0 | J2: 0 | K2: 0 | L2: 0 | M2: 0 | N2: 99997.78 | O2: -0.06 | P2: =O2*$F$22 -> -0.07997025 | R2: 2020-02-17 | S2: =NETWORKDAYS($S$1,R2,[1]Planilha2!$A$1:$L$62) -> 9 | T2: 1.79 | U2: 4.2 | V2: =(1+T2/100)^(S2/252) -> 1.000633832 | W2: =(1+U2/100)^(S2/252) -> 1.001470435 | X2: =((W2/V2)^(252/S2)-1)*100 -> 2.367619609 | Y2: ÍNDICE NACIONAL DE PREÇOS AO CONSUMIDOR AMPLO ESPECIAL - IPCA15
A3: H20 | B3: 0 | C3: 0 | D3: 0 | E3: 0 | F3: 0 | G3: 99772.38 | H3: 99772.38 | I3: 0 | J3: 0 | K3: 0 | L3: 0 | M3: 0 | N3: 99786.82 | O3: 14.44 | P3: =O3*$F$22 -> 19.2461735 | R3: 2020-03-16 | S3: =NETWORKDAYS($S$1,R3,[1]Planilha2!$A$1:$L$62) -> 27 | T3: =((100000/N3)^(252/S3)-1)*100 -> 2.01177259 | U3: =VLOOKUP(S3,BMF!$B$5:$C$30,2) -> 4.2 | V3: =(1+T3/100)^(S3/252) -> 1.002136354 | W3: =(1+U3/100)^(S3/252) -> 1.004417795 | X3: =((W3/V3)^(252/S3)-1)*100 -> 2.145073411 | AA3: SÉRIE HISTÓRICA
A4: J20 | B4: 0 | C4: 0 | D4: 0 | E4: 0 | F4: 0 | G4: 99619.26 | H4: 99619.26 | I4: 0 | J4: 0 | K4: 0 | L4: 0 | M4: 0 | N4: 99638.64 | O4: 19.38 | P4: 25.83039075 | R4: 2020-04-15 | S4: =NETWORKDAYS($S$1,R4,[1]Planilha2!$A$1:$L$62) -> 48 | T4: 1.918751945 | U4: =VLOOKUP(S4,BMF!$B$5:$C$30,2) -> 4.18 | V4: =(1+T4/100)^(S4/252) -> 1.003626705 | W4: =(1+U4/100)^(S4/252) -> 1.007830497 | X4: =((W4/V4)^(252/S4)-1)*100 -> 2.218677144 | AF4: (conclusão)
A5: K20 | B5: 0 | C5: 0 | D5: 0 | E5: 0 | F5: 0 | G5: 99546.7 | H5: 99546.7 | I5: 0 | J5: 0 | K5: 0 | L5: 0 | M5: 0 | N5: 99571.04 | O5: 24.34 | P5: 32.44126475 | R5: 2020-05-15 | S5: =NETWORKDAYS($S$1,R5,[1]Planilha2!$A$1:$L$62) -> 68 | T5: 1.60585202 | U5: =VLOOKUP(S5,BMF!$B$5:$C$30,2) -> 4.15 | V5: 1.00430808 | W5: 1.011032697 | X5: 2.503938435
A6: Q20 | B6: 104723 | C6: 103848 | D6: 16 | E6: 10625 | F6: 1406215598 | G6: 99292.76 | H6: 99292.76 | I6: 1.36 | J6: 1.35 | K6: 1.37 | L6: 1.35 | M6: 1.37 | N6: 99289.79 | O6: -2.97 | P6: -3.958527375 | R6: 2020-08-17 | S6: =NETWORKDAYS($S$1,R6,[1]Planilha2!$A$1:$L$62) -> 133 | T6: 1.359622238 | U6: =VLOOKUP(S6,BMF!$B$5:$C$30,2) -> 4.155 | V6: 1.007152901 | W6: 1.02171831 | X6: 2.757880999 | Y6: ANO | Z6: MÊS | AA6: NÚMERO ÍNDICE | AD6: VARIAÇÃO (%)
A7: F21 | B7: 27407 | C7: 27752 | D7: 11 | E7: 550 | F7: 72586666 | G7: 99044.05 | H7: 99044.05 | I7: 1.05 | J7: 1.05 | K7: 1.06 | L7: 1.05 | M7: 1.06 | N7: 99017.39 | O7: -26.66 | P7: -35.53344775 | R7: 2021-01-15 | S7: =NETWORKDAYS($S$1,R7,[1]Planilha2!$A$1:$L$62) -> 237 | T7: 1.055499041 | U7: =VLOOKUP(S7,BMF!$B$5:$C$30,2) -> 4.32 | V7: 1.00992361 | W7: 1.040577114 | X7: 3.230404075 | AA7: (DEZ 93 = 100)
A8: K21 | B8: 136562 | C8: 134847 | D8: 23 | E8: 13100 | F8: 1722745706 | G8: 98664.9 | H8: 98664.9 | I8: 1.07 | J8: 1.06 | K8: 1.11 | L8: 1.06 | M8: 1.11 | N8: 98616.66 | O8: -48.24 | P8: -64.296081 | R8: 2021-05-17 | S8: =NETWORKDAYS($S$1,R8,[1]Planilha2!$A$1:$L$62) -> 319 | T8: 1.106501148 | U8: =VLOOKUP(S8,BMF!$B$5:$C$30,2) -> 4.45 | V8: 1.014027447 | W8: 1.056661027 | X8: 3.306907879 | AB8: NO MÊS | AC8: 3 MESES | AD8: SEMESTRAL | AE8: NO ANO | AF8: 12 MESES
A9: F22 | B9: 215 | C9: 215 | D9: 0 | E9: 0 | F9: 0 | G9: 97285.48 | H9: 97285.48 | I9: 0 | J9: 0 | K9: 0 | L9: 0 | M9: 0 | N9: 97269.29 | O9: -16.19 | P9: -21.57863913 | R9: 2022-01-17 | S9: =NETWORKDAYS($S$1,R9,[1]Planilha2!$A$1:$L$62) -> 489 | T9: 1.437035431 | U9: =VLOOKUP(S9,BMF!$B$5:$C$30,2) -> 4.92 | V9: 1.028073712 | W9: 1.0976781 | X9: 3.433622201
A10: Q22 | B10: 113590 | C10: 116285 | D10: 23 | E10: 3185 | F10: 407261975 | G10: 95945.61 | H10: 95945.61 | I10: 1.67 | J10: 1.65 | K10: 1.67 | L10: 1.66 | M10: 1.67 | N10: 95925.11 | O10: -20.5 | P10: -27.32316875 | R10: 2022-08-15 | S10: =NETWORKDAYS($S$1,R10,[1]Planilha2!$A$1:$L$62) -> 634 | T10: 1.667344685 | U10: =VLOOKUP(S10,BMF!$B$5:$C$30,2) -> 5.2 | V10: 1.04247991 | W10: 1.136027398 | X10: 3.47471976 | Y10: 2018 | Z10: JAN | AA10: 4843.6 | AB10: 0.39 | AC10: 1.06 | AD10: 1.87 | AE10: 0.39 | AF10: 3.02
A11: K23 | B11: 57838 | C11: 56958 | D11: 10 | E11: 1740 | F11: 218251759 | G11: 94092.28 | H11: 94092.28 | I11: 1.89 | J11: 1.88 | K11: 1.89 | L11: 1.88 | M11: 1.88 | N11: 94126.29 | O11: 34.01 | P11: 45.32980338 | R11: 2023-05-15 | S11: =NETWORKDAYS($S$1,R11,[1]Planilha2!$A$1:$L$62) -> 820 | T11: 1.877687065 | U11: =VLOOKUP(S11,BMF!$B$5:$C$30,2) -> 5.53 | V11: 1.062402438 | W11: 1.191419107 | X11: 3.584997893 | Z11: FEV | AA11: 4862.01 | AB11: 0.38 | AC11: 1.12 | AD11: 1.91 | AE11: 0.77 | AF11: 2.86
A12: Q24 | B12: 84960 | C12: 86053 | D12: 13 | E12: 1260 | F12: 151848992 | G12: 90259.96 | H12: 90259.96 | I12: 2.26 | J12: 2.26 | K12: 2.27 | L12: 2.26 | M12: 2.26 | N12: 90424.36 | O12: 164.4 | P12: 219.118485 | R12: 2024-08-15 | S12: =NETWORKDAYS($S$1,R12,[1]Planilha2!$A$1:$L$62) -> 1136 | T12: 2.257987935 | U12: =VLOOKUP(S12,BMF!$B$5:$C$30,2) -> 6.067 | V12: 1.105896685 | W12: 1.304110233 | X12: 3.724904178 | Z12: MAR | AA12: 4866.87 | AB12: 0.1 | AC12: 0.87 | AD12: 1.89 | AE12: 0.87 | AF12: 2.8
A13: K25 | B13: 9285 | C13: 9635 | D13: 11 | E13: 900 | F13: 105399494 | G13: 87754.36 | H13: 87754.36 | I13: 2.49 | J13: 2.49 | K13: 2.5 | L13: 2.49 | M13: 2.5 | N13: 87895.08 | O13: 140.72 | P13: 187.556893 | R13: 2025-05-15 | S13: =NETWORKDAYS($S$1,R13,[1]Planilha2!$A$1:$L$62) -> 1323 | T13: 2.488093891 | U13: 6.3 | V13: 1.137720109 | W13: 1.378159994 | X13: 3.719364821 | Z13: ABR | AA13: 4877.09 | AB13: 0.21 | AC13: 0.69 | AD13: 1.76 | AE13: 1.08 | AF13: 2.8
A14: Q26 | B14: 45097 | C14: 44937 | D14: 10 | E14: 915 | F14: 102671338 | G14: 84021.97 | H14: 84021.97 | I14: 2.69 | J14: 2.66 | K14: 2.69 | L14: 2.68 | M14: 2.66 | N14: 84294.9 | O14: 272.93 | P14: 363.7713389 | R14: 2026-08-17 | S14: =NETWORKDAYS($S$1,R14,[1]Planilha2!$A$1:$L$62) -> 1641 | T14: 2.65835857 | U14: 6.5 | V14: 1.18631139 | W14: 1.506947218 | X14: 3.742161363 | Z14: MAI | AA14: 4883.92 | AB14: 0.14 | AC14: 0.45 | AD14: 1.58 | AE14: 1.23 | AF14: 2.7
A15: Q28 | B15: 45385 | C15: 45535 | D15: 13 | E15: 1330 | F15: 138176381 | G15: 77592.98 | H15: 77592.98 | I15: 3 | J15: 2.96 | K15: 3 | L15: 2.97 | M15: 2.97 | N15: 77984.7 | O15: 391.72 | P15: 522.0991055 | R15: 2028-08-15 | S15: =NETWORKDAYS($S$1,R15,[1]Planilha2!$A$1:$L$62) -> 2142 | T15: 2.968592375 | U15: 7 | V15: 1.282302811 | W15: 1.777305604 | X15: 3.915181836 | Z15: JUN | AA15: 4938.13 | AB15: 1.11 | AC15: 1.46 | AD15: 2.35 | AE15: 2.35 | AF15: 3.68
A16: Q30 | B16: 16330 | C16: 16335 | D16: 4 | E16: 705 | F16: 67035096 | G16: 70935.26 | H16: 70935.26 | I16: 3.28 | J16: 3.25 | K16: 3.28 | L16: 3.27 | M16: 3.25 | N16: 71520.4 | O16: 585.14 | P16: 779.8965348 | R16: 2030-08-15 | S16: =NETWORKDAYS($S$1,R16,[1]Planilha2!$A$1:$L$62) -> 2642 | T16: 3.248750743 | U16: 7.3 | V16: 1.398202471 | W16: 2.093203107 | X16: 3.923775569 | Z16: JUL | AA16: 4969.73 | AB16: 0.64 | AC16: 1.9 | AD16: 2.6 | AE16: 3 | AF16: 4.53
A17: K35 | B17: 7540 | C17: 7540 | D17: 0 | E17: 0 | F17: 0 | G17: 58638.02 | H17: 58638.02 | I17: 0 | J17: 0 | K17: 0 | L17: 0 | M17: 0 | N17: 59076.75 | O17: 438.73 | P17: 584.7557964 | R17: 2035-05-15 | S17: =NETWORKDAYS($S$1,R17,[1]Planilha2!$A$1:$L$62) -> 3835 | T17: 3.519065701 | U17: 7.7 | V17: 1.692713292 | W17: 3.092194152 | X17: 4.038806061 | Z17: AGO | AA17: 4976.19 | AB17: 0.13 | AC17: 1.89 | AD17: 2.35 | AE17: 3.14 | AF17: 4.3
Z18: SET | AA18: 4980.67 | AB18: 0.09 | AC18: 0.86 | AD18: 2.34 | AE18: 3.23 | AF18: 4.28
Z19: OUT | AA19: 5009.56 | AB19: 0.58 | AC19: 0.8 | AD19: 2.72 | AE19: 3.83 | AF19: 4.53
Z20: NOV | AA20: 5019.08 | AB20: 0.19 | AC20: 0.86 | AD20: 2.77 | AE20: 4.03 | AF20: 4.39
A21: TAXA DI OVER PARA 05/02/2020: 0,0171% | Z21: DEZ | AA21: 5011.05 | AB21: -0.16 | AC21: 0.61 | AD21: 1.48 | AE21: 3.86 | AF21: 3.86
A22: VALOR INDICE IPCA PRO RATA TEMPORE: 5.331,350 | E22: 5331.35 | F22: =0.00025*E22 -> 1.3328375
A23: A taxa e os preços são apenas prévias, não devendo ser considerados definitivos. | Y23: 2019 | Z23: JAN | AA23: 5026.08 | AB23: 0.3 | AC23: 0.33 | AD23: 1.13 | AE23: 0.3 | AF23: 3.77
A24: (1) Contratos em aberto na abertura do dia (2) Contratos em aberto no fechamento do dia (3) Ajuste do dia anterior corrigido (4) Ajuste do dia corrigido | Z24: FEV | AA24: 5043.17 | AB24: 0.34 | AC24: 0.48 | AD24: 1.35 | AE24: 0.64 | AF24: 3.73
Z25: MAR | AA25: 5070.4 | AB25: 0.54 | AC25: 1.18 | AD25: 1.8 | AE25: 1.18 | AF25: 4.18
Z26: ABR | AA26: 5106.91 | AB26: 0.72 | AC26: 1.61 | AD26: 1.94 | AE26: 1.91 | AF26: 4.71
Z27: MAI | AA27: 5124.78 | AB27: 0.35 | AC27: 1.62 | AD27: 2.11 | AE27: 2.27 | AF27: 4.93
Z28: JUN | AA28: 5127.85 | AB28: 0.06 | AC28: 1.13 | AD28: 2.33 | AE28: 2.33 | AF28: 3.84
Z29: JUL | AA29: 5132.47 | AB29: 0.09 | AC29: 0.5 | AD29: 2.12 | AE29: 2.42 | AF29: 3.27
Z30: AGO | AA30: 5136.58 | AB30: 0.08 | AC30: 0.23 | AD30: 1.85 | AE30: 2.51 | AF30: 3.22
Z31: SET | AA31: 5141.2 | AB31: 0.09 | AC31: 0.26 | AD31: 1.4 | AE31: 2.6 | AF31: 3.22
Z32: OUT | AA32: 5145.83 | AB32: 0.09 | AC32: 0.26 | AD32: 0.76 | AE32: 2.69 | AF32: 2.72
Z33: NOV | AA33: 5153.03 | AB33: 0.14 | AC33: 0.32 | AD33: 0.55 | AE33: 2.83 | AF33: 2.67
Z34: DEZ | AA34: 5207.14 | AB34: 1.05 | AC34: 1.28 | AD34: 1.55 | AE34: 3.91 | AF34: 3.91
Y36: 2020 | Z36: JAN | AA36: 5244.11 | AB36: 0.71 | AC36: 1.91 | AD36: 2.18 | AE36: 0.71 | AF36: 4.34
Y38: FONTE: IBGE , Diretoria de Pesquisas, Coordenação de Índices de Preços,
Y39: Sistema Nacional de Índices de Preços ao Consumidor.
